Workbook

Sheet Data Input
A1: No | B1: Yacht | C1: Skipper | D1: Length | E1: H/C | F1: P | G1: Class | I1: Start | L1: Out 1 | O1: In 1 | R1: Out 2 | U1: In 2 | X1: Finish | AB1: Elapsed | AE1: Pos | AH1: Corrected | AK1: Pos | AM1: Bridge1 | AN1: Bridge 2 | AO1: Bridge T | AP1: T | AQ1: T-B elapsed | AR1: Corr
H2: H | I2: M | J2: S | K2: H | L2: M | M2: S | N2: H | O2: M | P2: S | Q2: H | R2: M | S2: S | T2: H | U2: M | V2: S | W2: H | X2: M | Y2: S | AA2: H | AB2: M | AC2: S | AG2: H | AH2: M | AI2: S | AM2: Seconds | AN2: Seconds | AO2: Seconds | AP2: Seconds | AQ2: Seconds | AR2: Seconds
A3: 7 | B3: Forester | C3: S Bentall | D3: 32.5 | E3: -8 | G3: =IF(D3="","",IF(D3<25,"C",IF(D3<28.01,"B","A"))) -> A | H3: 8 | I3: 30 | J3: 0 | K3: 10 | L3: 26 | M3: 1 | N3: 10 | O3: 36 | P3: 45 | Q3: 12 | R3: 49 | S3: 28 | T3: 12 | U3: 54 | V3: 40 | W3: 14 | X3: 38 | Y3: 43 | AA3: =INT(AQ3/3600) -> 5 | AB3: =INT((AQ3-AA3*3600)/60) -> 52 | AC3: =AQ3-(AA3*3600+AB3*60) -> 47 | AE3: =+AT3 -> 10 | AG3: =INT(AR3/3600) -> 5 | AH3: =INT((AR3-AG3*3600)/60) -> 24 | AI3: =AR3-(AG3*3600+AH3*60) -> 33.64 | AK3: =+AW3 -> 2 | AM3: =(P3+O3*60+N3*3600)-(M3+L3*60+K3*3600) -> 644 | AN3: =(V3+U3*60+T3*3600)-(S3+R3*60+Q3*3600) -> 312 | AO3: =AM3+AN3 -> 956 | AP3: =(Y3+X3*60+W3*3600)-(J3+I3*60+H3*3600) -> 22123 | AQ3: =ABS(AP3-AO3) -> 21167 | AR3: =AQ3*(0.01*(100+E3)) -> 19473.64 | AS3: =+IF(F3="",AQ3,500000) -> 21167 | AT3: =IF(F3="",+RANK(AS3,$AS$3:$AS$32,1),+F3) -> 10 | AU3: =+IF(AT3<4,"Trophy","") ->  | AV3: =+IF(F3="",AR3,500000) -> 19473.64 | AW3: =IF(F3="",+RANK(AV3,$AV$3:$AV$32,1),+F3) -> 2 | AX3: =+IF(AW3<4,"Trophy","") -> Trophy
A4: 15 | B4: Pirate | C4: T Moore | D4: 30 | E4: -7 | G4: A | H4: 7 | I4: 30 | J4: 0 | K4: 9 | L4: 44 | M4: 11 | N4: 9 | O4: 52 | P4: 22 | Q4: 12 | R4: 7 | S4: 2 | T4: 12 | U4: 34 | V4: 15 | W4: 14 | X4: 27 | Y4: 5 | AA4: 6 | AB4: 21 | AC4: 41 | AE4: 19 | AG4: 5 | AH4: 54 | AI4: 57.93 | AK4: 18 | AM4: 491 | AN4: 1633 | AO4: 2124 | AP4: 25025 | AQ4: 22901 | AR4: 21297.93 | AS4: =+IF(F4="",AQ4,500000) -> 22901 | AT4: =IF(F4="",+RANK(AS4,$AS$3:$AS$32,1),+F4) -> 19 | AV4: =+IF(F4="",AR4,500000) -> 21297.93 | AW4: 18
A5: 22 | B5: Moonraker | C5: P Jeckells | D5: 29.5 | E5: 2 | G5: A | H5: 9 | I5: 30 | J5: 0 | K5: 11 | L5: 29 | M5: 52 | N5: 11 | O5: 35 | P5: 8 | Q5: 13 | R5: 41 | S5: 41 | T5: 13 | U5: 46 | V5: 15 | W5: 15 | X5: 27 | Y5: 35 | AA5: 5 | AB5: 47 | AC5: 45 | AE5: 9 | AG5: 5 | AH5: 54 | AI5: 42.3 | AK5: 17 | AM5: 316 | AN5: 274 | AO5: 590 | AP5: 21455 | AQ5: 20865 | AR5: 21282.3 | AS5: 20865 | AT5: 9 | AV5: 21282.3 | AW5: 17
A6: 24 | B6: Pippa | C6: G Angell | D6: 27.5 | E6: -7 | G6: B | H6: 8 | I6: 0 | J6: 0 | K6: 10 | L6: 7 | M6: 1 | N6: 10 | O6: 40 | P6: 53 | Q6: 12 | R6: 58 | S6: 7 | T6: 13 | U6: 26 | V6: 53 | W6: 15 | X6: 17 | Y6: 12 | AA6: 6 | AB6: 14 | AC6: 34 | AE6: 15 | AG6: 5 | AH6: 48 | AI6: 20.82 | AK6: 13 | AM6: 2032 | AN6: 1726 | AO6: 3758 | AP6: 26232 | AQ6: 22474 | AR6: 20900.82 | AS6: 22474 | AT6: 15 | AV6: 20900.82 | AW6: 13
A7: 52 | B7: Maidie | C7: M Barnes | D7: 43.2 | E7: 12 | G7: A | H7: 7 | I7: 30 | J7: 0 | K7: 9 | L7: 8 | M7: 19 | N7: 9 | O7: 23 | P7: 50 | Q7: 11 | R7: 9 | S7: 34 | T7: 11 | U7: 25 | V7: 36 | W7: 13 | X7: 2 | Y7: 59 | AA7: 5 | AB7: 1 | AC7: 26 | AE7: =+AT7 -> 1 | AG7: 5 | AH7: 37 | AI7: 36.32 | AK7: 4 | AM7: 931 | AN7: 962 | AO7: 1893 | AP7: 19979 | AQ7: 18086 | AR7: 20256.32 | AS7: 18086 | AT7: 1 | AU7: Trophy | AV7: 20256.32 | AW7: 4
A8: 78 | B8: Halcyon | C8: R Wilson | D8: 29.5 | E8: -7 | F8: DNS | G8: A | AE8: DNS | AK8: DNS | AM8: 0 | AN8: 0 | AO8: 0 | AS8: 500000 | AT8: DNS | AV8: 500000 | AW8: DNS
A9: 87 | B9: Modwena | C9: M Cassidy | D9: 24.8 | E9: -18 | G9: C | H9: 7 | I9: 15 | J9: 0 | K9: 9 | L9: 45 | M9: 27 | N9: 9 | O9: 53 | P9: 10 | Q9: 12 | R9: 25 | S9: 47 | T9: 12 | U9: 36 | V9: 54 | W9: 14 | X9: 47 | Y9: 4 | AA9: 7 | AB9: 13 | AC9: 14 | AE9: 22 | AG9: 5 | AH9: 55 | AI9: 15.08 | AK9: 19 | AM9: 463 | AN9: 667 | AO9: 1130 | AP9: 27124 | AQ9: 25994 | AR9: 21315.08 | AS9: 25994 | AT9: 22 | AV9: 21315.08 | AW9: 19
A10: 117 | B10: Anne | C10: D Church | D10: 34.5 | E10: -3 | G10: A | H10: 8 | I10: 0 | J10: 0 | K10: 10 | L10: 10 | M10: 59 | N10: 10 | O10: 44 | P10: 32 | Q10: 13 | R10: 2 | S10: 8 | T10: 13 | U10: 31 | V10: 15 | W10: 15 | X10: 17 | Y10: 30 | AA10: 6 | AB10: 14 | AC10: 50 | AE10: 16 | AG10: 6 | AH10: 3 | AI10: 35.3 | AK10: 21 | AM10: 2013 | AN10: 1747 | AO10: 3760 | AP10: 26250 | AQ10: 22490 | AR10: 21815.3 | AS10: 22490 | AT10: 16 | AV10: 21815.3 | AW10: 21
A11: 141 | B11: Nirvana | C11: M Claridge | D11: 20 | E11: -23 | F11: P | G11: C | H11: 7 | I11: 30 | J11: 0 | K11: 10 | L11: 1 | M11: 4 | N11: 10 | O11: 40 | P11: 41 | Q11: 13 | R11: 29 | S11: 4 | T11: 13 | U11: 34 | V11: 39 | W11: 15 | X11: 47 | Y11: 13 | AA11: 7 | AB11: 32 | AC11: 1 | AE11: P | AG11: 5 | AH11: 48 | AI11: 3.17 | AK11: P | AM11: 2377 | AN11: 335 | AO11: 2712 | AP11: 29833 | AQ11: 27121 | AR11: 20883.17 | AS11: 500000 | AT11: P | AV11: 500000 | AW11: P
A12: 155 | B12: Stratos | C12: J Townley | D12: 22.6 | E12: -17 | G12: C | H12: 7 | I12: 30 | J12: 0 | K12: 9 | L12: 58 | M12: 35 | N12: 10 | O12: 38 | P12: 53 | Q12: 13 | R12: 18 | S12: 23 | T12: 13 | U12: 29 | V12: 18 | W12: 15 | X12: 25 | Y12: 47 | AA12: 7 | AB12: 4 | AC12: 34 | AE12: 21 | AG12: 5 | AH12: 52 | AI12: 23.42 | AK12: 14 | AM12: 2418 | AN12: 655 | AO12: 3073 | AP12: 28547 | AQ12: 25474 | AR12: 21143.42 | AS12: 25474 | AT12: 21 | AV12: 21143.42 | AW12: 14
A13: 177 | B13: Breeze | C13: M Ellis | D13: 32 | E13: 2 | G13: A | H13: 8 | I13: 30 | J13: 0 | K13: 10 | L13: 12 | M13: 42 | N13: 10 | O13: 40 | P13: 18 | Q13: 12 | R13: 39 | S13: 50 | T13: 12 | U13: 45 | V13: 7 | W13: 14 | X13: 20 | Y13: 22 | AA13: 5 | AB13: 17 | AC13: 29 | AE13: 3 | AG13: 5 | AH13: 23 | AI13: 49.98 | AK13: 1 | AM13: 1656 | AN13: 317 | AO13: 1973 | AP13: 21022 | AQ13: 19049 | AR13: 19429.98 | AS13: 19049 | AT13: 3 | AU13: Trophy | AV13: 19429.98 | AW13: 1 | AX13: Trophy
A14: 179 | B14: Waxwing | C14: S Clayton | D14: 28 | E14: -8 | G14: B | H14: 8 | I14: 15 | J14: 0 | K14: 10 | L14: 28 | M14: 29 | N14: 10 | O14: 41 | P14: 55 | Q14: 12 | R14: 59 | S14: 55 | T14: 13 | U14: 30 | V14: 3 | W14: 15 | X14: 16 | Y14: 37 | AA14: 6 | AB14: 18 | AC14: 3 | AE14: 18 | AG14: 5 | AH14: 47 | AI14: 48.36 | AK14: 12 | AM14: 806 | AN14: 1808 | AO14: 2614 | AP14: 25297 | AQ14: 22683 | AR14: 20868.36 | AS14: 22683 | AT14: 18 | AV14: 20868.36 | AW14: 12
A15: 199 | B15: Morning Calm | C15: W Clark | D15: 26 | E15: -9 | G15: B | H15: 7 | I15: 15 | J15: 0 | K15: 9 | L15: 23 | M15: 48 | N15: 9 | O15: 28 | P15: 54 | Q15: 11 | R15: 36 | S15: 22 | T15: 11 | U15: 42 | V15: 54 | W15: 13 | X15: 37 | Y15: 30 | AA15: 6 | AB15: 10 | AC15: 52 | AE15: 13 | AG15: 5 | AH15: 37 | AI15: 29.32 | AK15: 3 | AM15: 306 | AN15: 392 | AO15: 698 | AP15: 22950 | AQ15: 22252 | AR15: 20249.32 | AS15: 22252 | AT15: 13 | AV15: 20249.32 | AW15: 3 | AX15: Trophy
A16: 217 | B16: Melinda | C16: P Howes | D16: 27.9 | E16: 1 | G16: B | H16: 9 | I16: 15 | J16: 0 | K16: 11 | L16: 13 | M16: 46 | N16: 11 | O16: 22 | P16: 30 | Q16: 13 | R16: 26 | S16: 37 | T16: 13 | U16: 30 | V16: 25 | W16: 15 | X16: 7 | Y16: 9 | AA16: 5 | AB16: 39 | AC16: 37 | AE16: 7 | AG16: 5 | AH16: 43 | AI16: 0.77 | AK16: 9 | AM16: 524 | AN16: 228 | AO16: 752 | AP16: 21129 | AQ16: 20377 | AR16: 20580.77 | AS16: 20377 | AT16: 7 | AV16: 20580.77 | AW16: 9
A17: 222 | B17: Swallowtail | C17: J Wells | D17: 28 | E17: -5 | F17: RET | G17: B | H17: 7 | I17: 30 | J17: 0 | K17: 9 | L17: 44 | M17: 4 | N17: 9 | O17: 52 | P17: 5 | Q17: 12 | R17: 6 | S17: 32 | T17: 12 | U17: 35 | V17: 19 | AA17: 8 | AB17: 6 | AC17: 48 | AE17: RET | AG17: 7 | AH17: 42 | AI17: 27.6 | AK17: RET | AM17: 481 | AN17: 1727 | AO17: 2208 | AP17: -27000 | AQ17: 29208 | AR17: 27747.6 | AS17: 500000 | AT17: RET | AV17: 500000 | AW17: RET
A18: 224 | B18: Anna | C18: R Branscombe | D18: 25 | E18: -9 | G18: B | H18: 7 | I18: 15 | J18: 0 | K18: 9 | L18: 36 | M18: 14 | N18: 9 | O18: 41 | P18: 49 | Q18: 11 | R18: 56 | S18: 21 | T18: 12 | U18: 34 | V18: 36 | W18: 14 | X18: 30 | Y18: 54 | AA18: 6 | AB18: 32 | AC18: 4 | AE18: 20 | AG18: 5 | AH18: 56 | AI18: 46.84 | AK18: 20 | AM18: 335 | AN18: 2295 | AO18: 2630 | AP18: 26154 | AQ18: 23524 | AR18: 21406.84 | AS18: 23524 | AT18: 20 | AV18: 21406.84 | AW18: 20
A19: 226 | B19: Medina | C19: S Brown | D19: 26 | E19: -9 | F19: P | G19: B | H19: 8 | I19: 30 | J19: 0 | K19: 10 | L19: 49 | M19: 14 | N19: 10 | O19: 57 | P19: 43 | Q19: 13 | R19: 34 | S19: 40 | T19: 13 | U19: 40 | V19: 13 | W19: 15 | X19: 50 | Y19: 30 | AA19: 7 | AB19: 6 | AC19: 28 | AE19: P | AG19: 6 | AH19: 28 | AI19: 5.08 | AK19: P | AM19: 509 | AN19: 333 | AO19: 842 | AP19: 26430 | AQ19: 25588 | AR19: 23285.08 | AS19: 500000 | AT19: P | AV19: 500000 | AW19: P
A20: 240 | B20: Avocet | C20: R Branford | D20: 28 | E20: -16 | F20: RET | G20: B | H20: 8 | I20: 15 | J20: 0 | K20: 10 | L20: 31 | M20: 10 | N20: 10 | O20: 38 | P20: 45 | AA20: 8 | AB20: 22 | AC20: 35 | AE20: RET | AG20: 7 | AH20: 2 | AI20: 10.2 | AK20: RET | AM20: 455 | AN20: 0 | AO20: 455 | AP20: -29700 | AQ20: 30155 | AR20: 25330.2 | AS20: 500000 | AT20: RET | AV20: 500000 | AW20: RET
A21: 244 | B21: Catspaw | C21: B Wilkins | D21: 28 | E21: -5 | G21: B | H21: 8 | I21: 0 | J21: 0 | K21: 10 | L21: 5 | M21: 57 | N21: 10 | O21: 40 | P21: 47 | Q21: 12 | R21: 52 | S21: 46 | T21: 12 | U21: 56 | V21: 4 | W21: 14 | X21: 35 | Y21: 34 | AA21: 5 | AB21: 57 | AC21: 26 | AE21: 11 | AG21: 5 | AH21: 39 | AI21: 33.7 | AK21: 5 | AM21: 2090 | AN21: 198 | AO21: 2288 | AP21: 23734 | AQ21: 21446 | AR21: 20373.7 | AS21: 21446 | AT21: 11 | AV21: 20373.7 | AW21: 5
A22: 323 | B22: Starlight Lady | C22: N.Matthews | D22: 30 | E22: 13 | F22: DNS | G22: A | AE22: DNS | AK22: DNS | AM22: 0 | AN22: 0 | AO22: 0 | AS22: 500000 | AT22: DNS | AV22: 500000 | AW22: DNS
A23: 335 | B23: Firebird | C23: R Richardson | D23: 30 | E23: 1 | G23: A | H23: 8 | I23: 30 | J23: 0 | K23: 10 | L23: 27 | M23: 31 | N23: 10 | O23: 40 | P23: 21 | Q23: 12 | R23: 42 | S23: 18 | T23: 12 | U23: 46 | V23: 54 | W23: 14 | X23: 23 | Y23: 43 | AA23: 5 | AB23: 36 | AC23: 17 | AE23: 6 | AG23: 5 | AH23: 39 | AI23: 38.77 | AK23: 6 | AM23: 770 | AN23: 276 | AO23: 1046 | AP23: 21223 | AQ23: 20177 | AR23: 20378.77 | AS23: 20177 | AT23: 6 | AV23: 20378.77 | AW23: 6
A24: 356 | B24: Amsel | C24: D McCarter | D24: 28 | E24: -18 | F24: RET | G24: B | H24: 7 | I24: 45 | J24: 0 | K24: 11 | L24: 32 | M24: 23 | N24: 11 | O24: 41 | P24: 9 | AA24: 7 | AB24: 53 | AC24: 46 | AE24: RET | AG24: 6 | AH24: 28 | AI24: 29.32 | AK24: RET | AM24: 526 | AN24: 0 | AO24: 526 | AP24: -27900 | AQ24: 28426 | AR24: 23309.32 | AS24: 500000 | AT24: RET | AV24: 500000 | AW24: RET
A25: 368 | B25: Wandering Rose | C25: Radley | D25: 31 | E25: -2 | G25: A | H25: 8 | I25: 0 | J25: 0 | K25: 9 | L25: 57 | M25: 45 | N25: 10 | O25: 36 | P25: 28 | Q25: 12 | R25: 45 | S25: 13 | T25: 12 | U25: 49 | V25: 0 | W25: 14 | X25: 29 | Y25: 13 | AA25: 5 | AB25: 46 | AC25: 43 | AE25: 8 | AG25: 5 | AH25: 39 | AI25: 46.94 | AK25: 7 | AM25: 2323 | AN25: 227 | AO25: 2550 | AP25: 23353 | AQ25: 20803 | AR25: 20386.94 | AS25: 20803 | AT25: 8 | AV25: 20386.94 | AW25: 7
A26: 369 | B26: Moonshadow | C26: N Hovey | D26: 31.5 | E26: 4 | G26: A | H26: 8 | I26: 15 | J26: 0 | K26: 10 | L26: 8 | M26: 12 | N26: 10 | O26: 35 | P26: 36 | Q26: 12 | R26: 37 | S26: 53 | T26: 12 | U26: 42 | V26: 20 | W26: 14 | X26: 16 | Y26: 2 | AA26: 5 | AB26: 29 | AC26: 11 | AE26: 5 | AG26: 5 | AH26: 42 | AI26: 21.04 | AK26: 8 | AM26: 1644 | AN26: 267 | AO26: 1911 | AP26: 21662 | AQ26: 19751 | AR26: 20541.04 | AS26: 19751 | AT26: 5 | AV26: 20541.04 | AW26: 8
A27: 370 | B27: Glory | C27: C Brown | D27: 35 | E27: -6 | G27: A | H27: 8 | I27: 30 | J27: 0 | K27: 10 | L27: 30 | M27: 50 | N27: 10 | O27: 45 | P27: 14 | Q27: 12 | R27: 58 | S27: 8 | T27: 13 | U27: 27 | V27: 25 | W27: 15 | X27: 20 | Y27: 29 | AA27: 6 | AB27: 6 | AC27: 48 | AE27: 12 | AG27: 5 | AH27: 44 | AI27: 47.52 | AK27: 10 | AM27: 864 | AN27: 1757 | AO27: 2621 | AP27: 24629 | AQ27: 22008 | AR27: 20687.52 | AS27: 22008 | AT27: 12 | AV27: 20687.52 | AW27: 10
A28: 373 | B28: Meggie | C28: J Tansley | D28: 34.9 | E28: 16 | G28: =IF(D28="","",IF(D28<25,"C",IF(D28<28.01,"B","A"))) -> A | H28: 9 | I28: 30 | J28: 0 | K28: 11 | L28: 28 | M28: 24 | N28: 11 | O28: 32 | P28: 14 | Q28: 13 | R28: 33 | S28: 26 | T28: 13 | U28: 36 | V28: 38 | W28: 15 | X28: 5 | Y28: 47 | AA28: =INT(AQ28/3600) -> 5 | AB28: =INT((AQ28-AA28*3600)/60) -> 28 | AC28: =AQ28-(AA28*3600+AB28*60) -> 45 | AE28: =+AT28 -> 4 | AG28: =INT(AR28/3600) -> 6 | AH28: =INT((AR28-AG28*3600)/60) -> 21 | AI28: =AR28-(AG28*3600+AH28*60) -> 21 | AK28: =+AW28 -> 22 | AM28: =(P28+O28*60+N28*3600)-(M28+L28*60+K28*3600) -> 230 | AN28: =(V28+U28*60+T28*3600)-(S28+R28*60+Q28*3600) -> 192 | AO28: =AM28+AN28 -> 422 | AP28: =(Y28+X28*60+W28*3600)-(J28+I28*60+H28*3600) -> 20147 | AQ28: =ABS(AP28-AO28) -> 19725 | AR28: =AQ28*(0.01*(100+E28)) -> 22881 | AS28: 19725 | AT28: 4 | AU28: =+IF(AT28<4,"Trophy","") ->  | AV28: 22881 | AW28: 22 | AX28: =+IF(AW28<4,"Trophy","") -> 
A29: 400 | B29: Swallowtail | C29: K Halifax | D29: 26.5 | E29: -7 | G29: B | H29: 8 | I29: 15 | J29: 0 | K29: 10 | L29: 22 | M29: 47 | N29: 10 | O29: 43 | P29: 13 | Q29: 13 | R29: 1 | S29: 12 | T29: 13 | U29: 29 | V29: 1 | W29: 15 | X29: 16 | Y29: 22 | AA29: 6 | AB29: 13 | AC29: 7 | AE29: 14 | AG29: 5 | AH29: 46 | AI29: 59.91 | AK29: 11 | AM29: 1226 | AN29: 1669 | AO29: 2895 | AP29: 25282 | AQ29: 22387 | AR29: 20819.91 | AS29: 22387 | AT29: 14 | AV29: 20819.91 | AW29: 11
A30: 417 | B30: Stellar | C30: T Frary | D30: 31.3 | E30: 16 | G30: A | H30: 9 | I30: 15 | J30: 0 | K30: 11 | L30: 1 | M30: 51 | N30: 11 | O30: 19 | P30: 47 | Q30: 13 | R30: 13 | S30: 30 | T30: 13 | U30: 26 | V30: 33 | W30: 14 | X30: 50 | Y30: 54 | AA30: 5 | AB30: 4 | AC30: 55 | AE30: 2 | AG30: 5 | AH30: 53 | AI30: 42.2 | AK30: 15 | AM30: 1076 | AN30: 783 | AO30: 1859 | AP30: 20154 | AQ30: 18295 | AR30: 21222.2 | AS30: 18295 | AT30: 2 | AU30: Trophy | AV30: 21222.2 | AW30: 15
A31: 418 | B31: Tinkerbell | C31: A Lincoln | D31: 25.2 | E31: -6 | G31: B | H31: 7 | I31: 30 | J31: 0 | K31: 9 | L31: 44 | M31: 6 | N31: 9 | O31: 52 | P31: 22 | Q31: 12 | R31: 4 | S31: 45 | T31: 12 | U31: 34 | V31: 56 | W31: 14 | X31: 24 | Y31: 48 | AA31: 6 | AB31: 16 | AC31: 21 | AE31: 17 | AG31: 5 | AH31: 53 | AI31: 46.14 | AK31: 16 | AM31: 496 | AN31: 1811 | AO31: 2307 | AP31: 24888 | AQ31: 22581 | AR31: 21226.14 | AS31: 22581 | AT31: 17 | AV31: 21226.14 | AW31: 16
A34: =+COUNT(A3:A33) -> 29

Sheet YNR
I1: Corrected
A2: No | B2: Yacht | C2: Skipper | D2: Length | E2: H/C | F2: P | G2: Class | H2: H | I2: M | J2: S | L2: Pos
A3: 177 | B3: =+VLOOKUP(+$A3,'Data Input'!$A$3:$AX$32,2,FALSE) -> Breeze | C3: =+VLOOKUP(+$A3,'Data Input'!$A$3:$AX$32,3,FALSE) -> M Ellis | D3: =+VLOOKUP(+$A3,'Data Input'!$A$3:$AX$32,4,FALSE) -> 32 | E3: =+VLOOKUP(+$A3,'Data Input'!$A$3:$AX$32,5,FALSE) -> 2 | F3: =+VLOOKUP(+$A3,'Data Input'!$A$3:$AX$32,6,FALSE) ->  | G3: =+VLOOKUP(+$A3,'Data Input'!$A$3:$AX$32,7,FALSE) -> A | H3: =+VLOOKUP($A3,'Data Input'!$A$3:$AX$32,33,FALSE) -> 5 | I3: =+VLOOKUP($A3,'Data Input'!$A$3:$AX$32,34,FALSE) -> 23 | J3: =+VLOOKUP($A3,'Data Input'!$A$3:$AX$32,35,FALSE) -> 49.98 | L3: =+VLOOKUP($A3,'Data Input'!$A$3:$AX$32,37,FALSE) -> 1
A4: 7 | B4: =+VLOOKUP(+$A4,'Data Input'!$A$3:$AX$32,2,FALSE) -> Forester | C4: =+VLOOKUP(+$A4,'Data Input'!$A$3:$AX$32,3,FALSE) -> S Bentall | D4: =+VLOOKUP(+$A4,'Data Input'!$A$3:$AX$32,4,FALSE) -> 32.5 | E4: =+VLOOKUP(+$A4,'Data Input'!$A$3:$AX$32,5,FALSE) -> -8 | F4: =+VLOOKUP(+$A4,'Data Input'!$A$3:$AX$32,6,FALSE) ->  | G4: =+VLOOKUP(+$A4,'Data Input'!$A$3:$AX$32,7,FALSE) -> A | H4: =+VLOOKUP($A4,'Data Input'!$A$3:$AX$32,33,FALSE) -> 5 | I4: =+VLOOKUP($A4,'Data Input'!$A$3:$AX$32,34,FALSE) -> 24 | J4: =+VLOOKUP($A4,'Data Input'!$A$3:$AX$32,35,FALSE) -> 33.64 | L4: =+VLOOKUP($A4,'Data Input'!$A$3:$AX$32,37,FALSE) -> 2
A5: 199 | B5: =+VLOOKUP(+$A5,'Data Input'!$A$3:$AX$32,2,FALSE) -> Morning Calm | C5: =+VLOOKUP(+$A5,'Data Input'!$A$3:$AX$32,3,FALSE) -> W Clark | D5: =+VLOOKUP(+$A5,'Data Input'!$A$3:$AX$32,4,FALSE) -> 26 | E5: =+VLOOKUP(+$A5,'Data Input'!$A$3:$AX$32,5,FALSE) -> -9 | F5: =+VLOOKUP(+$A5,'Data Input'!$A$3:$AX$32,6,FALSE) ->  | G5: =+VLOOKUP(+$A5,'Data Input'!$A$3:$AX$32,7,FALSE) -> B | H5: =+VLOOKUP($A5,'Data Input'!$A$3:$AX$32,33,FALSE) -> 5 | I5: =+VLOOKUP($A5,'Data Input'!$A$3:$AX$32,34,FALSE) -> 37 | J5: =+VLOOKUP($A5,'Data Input'!$A$3:$AX$32,35,FALSE) -> 29.32 | L5: =+VLOOKUP($A5,'Data Input'!$A$3:$AX$32,37,FALSE) -> 3
A6: 52 | B6: =+VLOOKUP(+$A6,'Data Input'!$A$3:$AX$32,2,FALSE) -> Maidie | C6: =+VLOOKUP(+$A6,'Data Input'!$A$3:$AX$32,3,FALSE) -> M Barnes | D6: =+VLOOKUP(+$A6,'Data Input'!$A$3:$AX$32,4,FALSE) -> 43.2 | E6: =+VLOOKUP(+$A6,'Data Input'!$A$3:$AX$32,5,FALSE) -> 12 | F6: =+VLOOKUP(+$A6,'Data Input'!$A$3:$AX$32,6,FALSE) ->  | G6: =+VLOOKUP(+$A6,'Data Input'!$A$3:$AX$32,7,FALSE) -> A | H6: =+VLOOKUP($A6,'Data Input'!$A$3:$AX$32,33,FALSE) -> 5 | I6: =+VLOOKUP($A6,'Data Input'!$A$3:$AX$32,34,FALSE) -> 37 | J6: =+VLOOKUP($A6,'Data Input'!$A$3:$AX$32,35,FALSE) -> 36.32 | L6: =+VLOOKUP($A6,'Data Input'!$A$3:$AX$32,37,FALSE) -> 4
A7: 244 | B7: =+VLOOKUP(+$A7,'Data Input'!$A$3:$AX$32,2,FALSE) -> Catspaw | C7: =+VLOOKUP(+$A7,'Data Input'!$A$3:$AX$32,3,FALSE) -> B Wilkins | D7: =+VLOOKUP(+$A7,'Data Input'!$A$3:$AX$32,4,FALSE) -> 28 | E7: =+VLOOKUP(+$A7,'Data Input'!$A$3:$AX$32,5,FALSE) -> -5 | F7: =+VLOOKUP(+$A7,'Data Input'!$A$3:$AX$32,6,FALSE) ->  | G7: =+VLOOKUP(+$A7,'Data Input'!$A$3:$AX$32,7,FALSE) -> B | H7: =+VLOOKUP($A7,'Data Input'!$A$3:$AX$32,33,FALSE) -> 5 | I7: =+VLOOKUP($A7,'Data Input'!$A$3:$AX$32,34,FALSE) -> 39 | J7: =+VLOOKUP($A7,'Data Input'!$A$3:$AX$32,35,FALSE) -> 33.7 | L7: =+VLOOKUP($A7,'Data Input'!$A$3:$AX$32,37,FALSE) -> 5
A8: 335 | B8: =+VLOOKUP(+$A8,'Data Input'!$A$3:$AX$32,2,FALSE) -> Firebird | C8: =+VLOOKUP(+$A8,'Data Input'!$A$3:$AX$32,3,FALSE) -> R Richardson | D8: =+VLOOKUP(+$A8,'Data Input'!$A$3:$AX$32,4,FALSE) -> 30 | E8: =+VLOOKUP(+$A8,'Data Input'!$A$3:$AX$32,5,FALSE) -> 1 | F8: =+VLOOKUP(+$A8,'Data Input'!$A$3:$AX$32,6,FALSE) ->  | G8: =+VLOOKUP(+$A8,'Data Input'!$A$3:$AX$32,7,FALSE) -> A | H8: =+VLOOKUP($A8,'Data Input'!$A$3:$AX$32,33,FALSE) -> 5 | I8: =+VLOOKUP($A8,'Data Input'!$A$3:$AX$32,34,FALSE) -> 39 | J8: =+VLOOKUP($A8,'Data Input'!$A$3:$AX$32,35,FALSE) -> 38.77 | L8: =+VLOOKUP($A8,'Data Input'!$A$3:$AX$32,37,FALSE) -> 6
A9: 368 | B9: =+VLOOKUP(+$A9,'Data Input'!$A$3:$AX$32,2,FALSE) -> Wandering Rose | C9: =+VLOOKUP(+$A9,'Data Input'!$A$3:$AX$32,3,FALSE) -> Radley | D9: =+VLOOKUP(+$A9,'Data Input'!$A$3:$AX$32,4,FALSE) -> 31 | E9: =+VLOOKUP(+$A9,'Data Input'!$A$3:$AX$32,5,FALSE) -> -2 | F9: =+VLOOKUP(+$A9,'Data Input'!$A$3:$AX$32,6,FALSE) ->  | G9: =+VLOOKUP(+$A9,'Data Input'!$A$3:$AX$32,7,FALSE) -> A | H9: =+VLOOKUP($A9,'Data Input'!$A$3:$AX$32,33,FALSE) -> 5 | I9: =+VLOOKUP($A9,'Data Input'!$A$3:$AX$32,34,FALSE) -> 39 | J9: =+VLOOKUP($A9,'Data Input'!$A$3:$AX$32,35,FALSE) -> 46.94 | L9: =+VLOOKUP($A9,'Data Input'!$A$3:$AX$32,37,FALSE) -> 7
A10: 369 | B10: =+VLOOKUP(+$A10,'Data Input'!$A$3:$AX$32,2,FALSE) -> Moonshadow | C10: =+VLOOKUP(+$A10,'Data Input'!$A$3:$AX$32,3,FALSE) -> N Hovey | D10: =+VLOOKUP(+$A10,'Data Input'!$A$3:$AX$32,4,FALSE) -> 31.5 | E10: =+VLOOKUP(+$A10,'Data Input'!$A$3:$AX$32,5,FALSE) -> 4 | F10: =+VLOOKUP(+$A10,'Data Input'!$A$3:$AX$32,6,FALSE) ->  | G10: =+VLOOKUP(+$A10,'Data Input'!$A$3:$AX$32,7,FALSE) -> A | H10: =+VLOOKUP($A10,'Data Input'!$A$3:$AX$32,33,FALSE) -> 5 | I10: =+VLOOKUP($A10,'Data Input'!$A$3:$AX$32,34,FALSE) -> 42 | J10: =+VLOOKUP($A10,'Data Input'!$A$3:$AX$32,35,FALSE) -> 21.04 | L10: =+VLOOKUP($A10,'Data Input'!$A$3:$AX$32,37,FALSE) -> 8
A11: 217 | B11: =+VLOOKUP(+$A11,'Data Input'!$A$3:$AX$32,2,FALSE) -> Melinda | C11: =+VLOOKUP(+$A11,'Data Input'!$A$3:$AX$32,3,FALSE) -> P Howes | D11: =+VLOOKUP(+$A11,'Data Input'!$A$3:$AX$32,4,FALSE) -> 27.9 | E11: =+VLOOKUP(+$A11,'Data Input'!$A$3:$AX$32,5,FALSE) -> 1 | F11: =+VLOOKUP(+$A11,'Data Input'!$A$3:$AX$32,6,FALSE) ->  | G11: =+VLOOKUP(+$A11,'Data Input'!$A$3:$AX$32,7,FALSE) -> B | H11: =+VLOOKUP($A11,'Data Input'!$A$3:$AX$32,33,FALSE) -> 5 | I11: =+VLOOKUP($A11,'Data Input'!$A$3:$AX$32,34,FALSE) -> 43 | J11: =+VLOOKUP($A11,'Data Input'!$A$3:$AX$32,35,FALSE) -> 0.77 | L11: =+VLOOKUP($A11,'Data Input'!$A$3:$AX$32,37,FALSE) -> 9
A12: 370 | B12: =+VLOOKUP(+$A12,'Data Input'!$A$3:$AX$32,2,FALSE) -> Glory | C12: =+VLOOKUP(+$A12,'Data Input'!$A$3:$AX$32,3,FALSE) -> C Brown | D12: =+VLOOKUP(+$A12,'Data Input'!$A$3:$AX$32,4,FALSE) -> 35 | E12: =+VLOOKUP(+$A12,'Data Input'!$A$3:$AX$32,5,FALSE) -> -6 | F12: =+VLOOKUP(+$A12,'Data Input'!$A$3:$AX$32,6,FALSE) ->  | G12: =+VLOOKUP(+$A12,'Data Input'!$A$3:$AX$32,7,FALSE) -> A | H12: =+VLOOKUP($A12,'Data Input'!$A$3:$AX$32,33,FALSE) -> 5 | I12: =+VLOOKUP($A12,'Data Input'!$A$3:$AX$32,34,FALSE) -> 44 | J12: =+VLOOKUP($A12,'Data Input'!$A$3:$AX$32,35,FALSE) -> 47.52 | L12: =+VLOOKUP($A12,'Data Input'!$A$3:$AX$32,37,FALSE) -> 10
A13: 400 | B13: =+VLOOKUP(+$A13,'Data Input'!$A$3:$AX$32,2,FALSE) -> Swallowtail | C13: =+VLOOKUP(+$A13,'Data Input'!$A$3:$AX$32,3,FALSE) -> K Halifax | D13: =+VLOOKUP(+$A13,'Data Input'!$A$3:$AX$32,4,FALSE) -> 26.5 | E13: =+VLOOKUP(+$A13,'Data Input'!$A$3:$AX$32,5,FALSE) -> -7 | F13: =+VLOOKUP(+$A13,'Data Input'!$A$3:$AX$32,6,FALSE) ->  | G13: =+VLOOKUP(+$A13,'Data Input'!$A$3:$AX$32,7,FALSE) -> B | H13: =+VLOOKUP($A13,'Data Input'!$A$3:$AX$32,33,FALSE) -> 5 | I13: =+VLOOKUP($A13,'Data Input'!$A$3:$AX$32,34,FALSE) -> 46 | J13: =+VLOOKUP($A13,'Data Input'!$A$3:$AX$32,35,FALSE) -> 59.91 | L13: =+VLOOKUP($A13,'Data Input'!$A$3:$AX$32,37,FALSE) -> 11
A14: 179 | B14: =+VLOOKUP(+$A14,'Data Input'!$A$3:$AX$32,2,FALSE) -> Waxwing | C14: =+VLOOKUP(+$A14,'Data Input'!$A$3:$AX$32,3,FALSE) -> S Clayton | D14: =+VLOOKUP(+$A14,'Data Input'!$A$3:$AX$32,4,FALSE) -> 28 | E14: =+VLOOKUP(+$A14,'Data Input'!$A$3:$AX$32,5,FALSE) -> -8 | F14: =+VLOOKUP(+$A14,'Data Input'!$A$3:$AX$32,6,FALSE) ->  | G14: =+VLOOKUP(+$A14,'Data Input'!$A$3:$AX$32,7,FALSE) -> B | H14: =+VLOOKUP($A14,'Data Input'!$A$3:$AX$32,33,FALSE) -> 5 | I14: =+VLOOKUP($A14,'Data Input'!$A$3:$AX$32,34,FALSE) -> 47 | J14: =+VLOOKUP($A14,'Data Input'!$A$3:$AX$32,35,FALSE) -> 48.36 | L14: =+VLOOKUP($A14,'Data Input'!$A$3:$AX$32,37,FALSE) -> 12
A15: 24 | B15: =+VLOOKUP(+$A15,'Data Input'!$A$3:$AX$32,2,FALSE) -> Pippa | C15: =+VLOOKUP(+$A15,'Data Input'!$A$3:$AX$32,3,FALSE) -> G Angell | D15: =+VLOOKUP(+$A15,'Data Input'!$A$3:$AX$32,4,FALSE) -> 27.5 | E15: =+VLOOKUP(+$A15,'Data Input'!$A$3:$AX$32,5,FALSE) -> -7 | F15: =+VLOOKUP(+$A15,'Data Input'!$A$3:$AX$32,6,FALSE) ->  | G15: =+VLOOKUP(+$A15,'Data Input'!$A$3:$AX$32,7,FALSE) -> B | H15: =+VLOOKUP($A15,'Data Input'!$A$3:$AX$32,33,FALSE) -> 5 | I15: =+VLOOKUP($A15,'Data Input'!$A$3:$AX$32,34,FALSE) -> 48 | J15: =+VLOOKUP($A15,'Data Input'!$A$3:$AX$32,35,FALSE) -> 20.82 | L15: =+VLOOKUP($A15,'Data Input'!$A$3:$AX$32,37,FALSE) -> 13
A16: 155 | B16: =+VLOOKUP(+$A16,'Data Input'!$A$3:$AX$32,2,FALSE) -> Stratos | C16: =+VLOOKUP(+$A16,'Data Input'!$A$3:$AX$32,3,FALSE) -> J Townley | D16: =+VLOOKUP(+$A16,'Data Input'!$A$3:$AX$32,4,FALSE) -> 22.6 | E16: =+VLOOKUP(+$A16,'Data Input'!$A$3:$AX$32,5,FALSE) -> -17 | F16: =+VLOOKUP(+$A16,'Data Input'!$A$3:$AX$32,6,FALSE) ->  | G16: =+VLOOKUP(+$A16,'Data Input'!$A$3:$AX$32,7,FALSE) -> C | H16: =+VLOOKUP($A16,'Data Input'!$A$3:$AX$32,33,FALSE) -> 5 | I16: =+VLOOKUP($A16,'Data Input'!$A$3:$AX$32,34,FALSE) -> 52 | J16: =+VLOOKUP($A16,'Data Input'!$A$3:$AX$32,35,FALSE) -> 23.42 | L16: =+VLOOKUP($A16,'Data Input'!$A$3:$AX$32,37,FALSE) -> 14
A17: 417 | B17: =+VLOOKUP(+$A17,'Data Input'!$A$3:$AX$32,2,FALSE) -> Stellar | C17: =+VLOOKUP(+$A17,'Data Input'!$A$3:$AX$32,3,FALSE) -> T Frary | D17: =+VLOOKUP(+$A17,'Data Input'!$A$3:$AX$32,4,FALSE) -> 31.3 | E17: =+VLOOKUP(+$A17,'Data Input'!$A$3:$AX$32,5,FALSE) -> 16 | F17: =+VLOOKUP(+$A17,'Data Input'!$A$3:$AX$32,6,FALSE) ->  | G17: =+VLOOKUP(+$A17,'Data Input'!$A$3:$AX$32,7,FALSE) -> A | H17: =+VLOOKUP($A17,'Data Input'!$A$3:$AX$32,33,FALSE) -> 5 | I17: =+VLOOKUP($A17,'Data Input'!$A$3:$AX$32,34,FALSE) -> 53 | J17: =+VLOOKUP($A17,'Data Input'!$A$3:$AX$32,35,FALSE) -> 42.2 | L17: =+VLOOKUP($A17,'Data Input'!$A$3:$AX$32,37,FALSE) -> 15
A18: 418 | B18: =+VLOOKUP(+$A18,'Data Input'!$A$3:$AX$32,2,FALSE) -> Tinkerbell | C18: =+VLOOKUP(+$A18,'Data Input'!$A$3:$AX$32,3,FALSE) -> A Lincoln | D18: =+VLOOKUP(+$A18,'Data Input'!$A$3:$AX$32,4,FALSE) -> 25.2 | E18: =+VLOOKUP(+$A18,'Data Input'!$A$3:$AX$32,5,FALSE) -> -6 | F18: =+VLOOKUP(+$A18,'Data Input'!$A$3:$AX$32,6,FALSE) ->  | G18: =+VLOOKUP(+$A18,'Data Input'!$A$3:$AX$32,7,FALSE) -> B | H18: =+VLOOKUP($A18,'Data Input'!$A$3:$AX$32,33,FALSE) -> 5 | I18: =+VLOOKUP($A18,'Data Input'!$A$3:$AX$32,34,FALSE) -> 53 | J18: =+VLOOKUP($A18,'Data Input'!$A$3:$AX$32,35,FALSE) -> 46.14 | L18: =+VLOOKUP($A18,'Data Input'!$A$3:$AX$32,37,FALSE) -> 16
A19: 22 | B19: =+VLOOKUP(+$A19,'Data Input'!$A$3:$AX$32,2,FALSE) -> Moonraker | C19: =+VLOOKUP(+$A19,'Data Input'!$A$3:$AX$32,3,FALSE) -> P Jeckells | D19: =+VLOOKUP(+$A19,'Data Input'!$A$3:$AX$32,4,FALSE) -> 29.5 | E19: =+VLOOKUP(+$A19,'Data Input'!$A$3:$AX$32,5,FALSE) -> 2 | F19: =+VLOOKUP(+$A19,'Data Input'!$A$3:$AX$32,6,FALSE) ->  | G19: =+VLOOKUP(+$A19,'Data Input'!$A$3:$AX$32,7,FALSE) -> A | H19: =+VLOOKUP($A19,'Data Input'!$A$3:$AX$32,33,FALSE) -> 5 | I19: =+VLOOKUP($A19,'Data Input'!$A$3:$AX$32,34,FALSE) -> 54 | J19: =+VLOOKUP($A19,'Data Input'!$A$3:$AX$32,35,FALSE) -> 42.3 | L19: =+VLOOKUP($A19,'Data Input'!$A$3:$AX$32,37,FALSE) -> 17
A20: 15 | B20: =+VLOOKUP(+$A20,'Data Input'!$A$3:$AX$32,2,FALSE) -> Pirate | C20: =+VLOOKUP(+$A20,'Data Input'!$A$3:$AX$32,3,FALSE) -> T Moore | D20: =+VLOOKUP(+$A20,'Data Input'!$A$3:$AX$32,4,FALSE) -> 30 | E20: =+VLOOKUP(+$A20,'Data Input'!$A$3:$AX$32,5,FALSE) -> -7 | F20: =+VLOOKUP(+$A20,'Data Input'!$A$3:$AX$32,6,FALSE) ->  | G20: =+VLOOKUP(+$A20,'Data Input'!$A$3:$AX$32,7,FALSE) -> A | H20: =+VLOOKUP($A20,'Data Input'!$A$3:$AX$32,33,FALSE) -> 5 | I20: =+VLOOKUP($A20,'Data Input'!$A$3:$AX$32,34,FALSE) -> 54 | J20: =+VLOOKUP($A20,'Data Input'!$A$3:$AX$32,35,FALSE) -> 57.93 | L20: =+VLOOKUP($A20,'Data Input'!$A$3:$AX$32,37,FALSE) -> 18
A21: 87 | B21: =+VLOOKUP(+$A21,'Data Input'!$A$3:$AX$32,2,FALSE) -> Modwena | C21: =+VLOOKUP(+$A21,'Data Input'!$A$3:$AX$32,3,FALSE) -> M Cassidy | D21: =+VLOOKUP(+$A21,'Data Input'!$A$3:$AX$32,4,FALSE) -> 24.8 | E21: =+VLOOKUP(+$A21,'Data Input'!$A$3:$AX$32,5,FALSE) -> -18 | F21: =+VLOOKUP(+$A21,'Data Input'!$A$3:$AX$32,6,FALSE) ->  | G21: =+VLOOKUP(+$A21,'Data Input'!$A$3:$AX$32,7,FALSE) -> C | H21: =+VLOOKUP($A21,'Data Input'!$A$3:$AX$32,33,FALSE) -> 5 | I21: =+VLOOKUP($A21,'Data Input'!$A$3:$AX$32,34,FALSE) -> 55 | J21: =+VLOOKUP($A21,'Data Input'!$A$3:$AX$32,35,FALSE) -> 15.08 | L21: =+VLOOKUP($A21,'Data Input'!$A$3:$AX$32,37,FALSE) -> 19
A22: 224 | B22: =+VLOOKUP(+$A22,'Data Input'!$A$3:$AX$32,2,FALSE) -> Anna | C22: =+VLOOKUP(+$A22,'Data Input'!$A$3:$AX$32,3,FALSE) -> R Branscombe | D22: =+VLOOKUP(+$A22,'Data Input'!$A$3:$AX$32,4,FALSE) -> 25 | E22: =+VLOOKUP(+$A22,'Data Input'!$A$3:$AX$32,5,FALSE) -> -9 | F22: =+VLOOKUP(+$A22,'Data Input'!$A$3:$AX$32,6,FALSE) ->  | G22: =+VLOOKUP(+$A22,'Data Input'!$A$3:$AX$32,7,FALSE) -> B | H22: =+VLOOKUP($A22,'Data Input'!$A$3:$AX$32,33,FALSE) -> 5 | I22: =+VLOOKUP($A22,'Data Input'!$A$3:$AX$32,34,FALSE) -> 56 | J22: =+VLOOKUP($A22,'Data Input'!$A$3:$AX$32,35,FALSE) -> 46.84 | L22: =+VLOOKUP($A22,'Data Input'!$A$3:$AX$32,37,FALSE) -> 20
A23: 117 | B23: =+VLOOKUP(+$A23,'Data Input'!$A$3:$AX$32,2,FALSE) -> Anne | C23: =+VLOOKUP(+$A23,'Data Input'!$A$3:$AX$32,3,FALSE) -> D Church | D23: =+VLOOKUP(+$A23,'Data Input'!$A$3:$AX$32,4,FALSE) -> 34.5 | E23: =+VLOOKUP(+$A23,'Data Input'!$A$3:$AX$32,5,FALSE) -> -3 | F23: =+VLOOKUP(+$A23,'Data Input'!$A$3:$AX$32,6,FALSE) ->  | G23: =+VLOOKUP(+$A23,'Data Input'!$A$3:$AX$32,7,FALSE) -> A | H23: =+VLOOKUP($A23,'Data Input'!$A$3:$AX$32,33,FALSE) -> 6 | I23: =+VLOOKUP($A23,'Data Input'!$A$3:$AX$32,34,FALSE) -> 3 | J23: =+VLOOKUP($A23,'Data Input'!$A$3:$AX$32,35,FALSE) -> 35.3 | L23: =+VLOOKUP($A23,'Data Input'!$A$3:$AX$32,37,FALSE) -> 21
A24: 373 | B24: =+VLOOKUP(+$A24,'Data Input'!$A$3:$AX$32,2,FALSE) -> Meggie | C24: =+VLOOKUP(+$A24,'Data Input'!$A$3:$AX$32,3,FALSE) -> J Tansley | D24: =+VLOOKUP(+$A24,'Data Input'!$A$3:$AX$32,4,FALSE) -> 34.9 | E24: =+VLOOKUP(+$A24,'Data Input'!$A$3:$AX$32,5,FALSE) -> 16 | F24: =+VLOOKUP(+$A24,'Data Input'!$A$3:$AX$32,6,FALSE) ->  | G24: =+VLOOKUP(+$A24,'Data Input'!$A$3:$AX$32,7,FALSE) -> A | H24: =+VLOOKUP($A24,'Data Input'!$A$3:$AX$32,33,FALSE) -> 6 | I24: =+VLOOKUP($A24,'Data Input'!$A$3:$AX$32,34,FALSE) -> 21 | J24: =+VLOOKUP($A24,'Data Input'!$A$3:$AX$32,35,FALSE) -> 21 | L24: =+VLOOKUP($A24,'Data Input'!$A$3:$AX$32,37,FALSE) -> 22
A25: 78 | B25: =+VLOOKUP(+$A25,'Data Input'!$A$3:$AX$32,2,FALSE) -> Halcyon | C25: =+VLOOKUP(+$A25,'Data Input'!$A$3:$AX$32,3,FALSE) -> R Wilson | D25: =+VLOOKUP(+$A25,'Data Input'!$A$3:$AX$32,4,FALSE) -> 29.5 | E25: =+VLOOKUP(+$A25,'Data Input'!$A$3:$AX$32,5,FALSE) -> -7 | F25: =+VLOOKUP(+$A25,'Data Input'!$A$3:$AX$32,6,FALSE) -> DNS | G25: =+VLOOKUP(+$A25,'Data Input'!$A$3:$AX$32,7,FALSE) -> A | H25: =+VLOOKUP($A25,'Data Input'!$A$3:$AX$32,33,FALSE) ->  | I25: =+VLOOKUP($A25,'Data Input'!$A$3:$AX$32,34,FALSE) ->  | J25: =+VLOOKUP($A25,'Data Input'!$A$3:$AX$32,35,FALSE) ->  | L25: =+VLOOKUP($A25,'Data Input'!$A$3:$AX$32,37,FALSE) -> DNS
A26: 323 | B26: =+VLOOKUP(+$A26,'Data Input'!$A$3:$AX$32,2,FALSE) -> Starlight Lady | C26: =+VLOOKUP(+$A26,'Data Input'!$A$3:$AX$32,3,FALSE) -> N.Matthews | D26: =+VLOOKUP(+$A26,'Data Input'!$A$3:$AX$32,4,FALSE) -> 30 | E26: =+VLOOKUP(+$A26,'Data Input'!$A$3:$AX$32,5,FALSE) -> 13 | F26: =+VLOOKUP(+$A26,'Data Input'!$A$3:$AX$32,6,FALSE) -> DNS | G26: =+VLOOKUP(+$A26,'Data Input'!$A$3:$AX$32,7,FALSE) -> A | H26: =+VLOOKUP($A26,'Data Input'!$A$3:$AX$32,33,FALSE) ->  | I26: =+VLOOKUP($A26,'Data Input'!$A$3:$AX$32,34,FALSE) ->  | J26: =+VLOOKUP($A26,'Data Input'!$A$3:$AX$32,35,FALSE) ->  | L26: =+VLOOKUP($A26,'Data Input'!$A$3:$AX$32,37,FALSE) -> DNS
A27: 141 | B27: =+VLOOKUP(+$A27,'Data Input'!$A$3:$AX$32,2,FALSE) -> Nirvana | C27: =+VLOOKUP(+$A27,'Data Input'!$A$3:$AX$32,3,FALSE) -> M Claridge | D27: =+VLOOKUP(+$A27,'Data Input'!$A$3:$AX$32,4,FALSE) -> 20 | E27: =+VLOOKUP(+$A27,'Data Input'!$A$3:$AX$32,5,FALSE) -> -23 | F27: =+VLOOKUP(+$A27,'Data Input'!$A$3:$AX$32,6,FALSE) -> P | G27: =+VLOOKUP(+$A27,'Data Input'!$A$3:$AX$32,7,FALSE) -> C | H27: =+VLOOKUP($A27,'Data Input'!$A$3:$AX$32,33,FALSE) -> 5 | I27: =+VLOOKUP($A27,'Data Input'!$A$3:$AX$32,34,FALSE) -> 48 | J27: =+VLOOKUP($A27,'Data Input'!$A$3:$AX$32,35,FALSE) -> 3.17 | L27: =+VLOOKUP($A27,'Data Input'!$A$3:$AX$32,37,FALSE) -> P
A28: 226 | B28: =+VLOOKUP(+$A28,'Data Input'!$A$3:$AX$32,2,FALSE) -> Medina | C28: =+VLOOKUP(+$A28,'Data Input'!$A$3:$AX$32,3,FALSE) -> S Brown | D28: =+VLOOKUP(+$A28,'Data Input'!$A$3:$AX$32,4,FALSE) -> 26 | E28: =+VLOOKUP(+$A28,'Data Input'!$A$3:$AX$32,5,FALSE) -> -9 | F28: =+VLOOKUP(+$A28,'Data Input'!$A$3:$AX$32,6,FALSE) -> P | G28: =+VLOOKUP(+$A28,'Data Input'!$A$3:$AX$32,7,FALSE) -> B | H28: =+VLOOKUP($A28,'Data Input'!$A$3:$AX$32,33,FALSE) -> 6 | I28: =+VLOOKUP($A28,'Data Input'!$A$3:$AX$32,34,FALSE) -> 28 | J28: =+VLOOKUP($A28,'Data Input'!$A$3:$AX$32,35,FALSE) -> 5.08 | L28: =+VLOOKUP($A28,'Data Input'!$A$3:$AX$32,37,FALSE) -> P
A29: 356 | B29: =+VLOOKUP(+$A29,'Data Input'!$A$3:$AX$32,2,FALSE) -> Amsel | C29: =+VLOOKUP(+$A29,'Data Input'!$A$3:$AX$32,3,FALSE) -> D McCarter | D29: =+VLOOKUP(+$A29,'Data Input'!$A$3:$AX$32,4,FALSE) -> 28 | E29: =+VLOOKUP(+$A29,'Data Input'!$A$3:$AX$32,5,FALSE) -> -18 | F29: =+VLOOKUP(+$A29,'Data Input'!$A$3:$AX$32,6,FALSE) -> RET | G29: =+VLOOKUP(+$A29,'Data Input'!$A$3:$AX$32,7,FALSE) -> B | H29: =+VLOOKUP($A29,'Data Input'!$A$3:$AX$32,33,FALSE) -> 6 | I29: =+VLOOKUP($A29,'Data Input'!$A$3:$AX$32,34,FALSE) -> 28 | J29: =+VLOOKUP($A29,'Data Input'!$A$3:$AX$32,35,FALSE) -> 29.32 | L29: =+VLOOKUP($A29,'Data Input'!$A$3:$AX$32,37,FALSE) -> RET
A30: 222 | B30: =+VLOOKUP(+$A30,'Data Input'!$A$3:$AX$32,2,FALSE) -> Swallowtail | C30: =+VLOOKUP(+$A30,'Data Input'!$A$3:$AX$32,3,FALSE) -> J Wells | D30: =+VLOOKUP(+$A30,'Data Input'!$A$3:$AX$32,4,FALSE) -> 28 | E30: =+VLOOKUP(+$A30,'Data Input'!$A$3:$AX$32,5,FALSE) -> -5 | F30: =+VLOOKUP(+$A30,'Data Input'!$A$3:$AX$32,6,FALSE) -> RET | G30: =+VLOOKUP(+$A30,'Data Input'!$A$3:$AX$32,7,FALSE) -> B | H30: =+VLOOKUP($A30,'Data Input'!$A$3:$AX$32,33,FALSE) -> 7 | I30: =+VLOOKUP($A30,'Data Input'!$A$3:$AX$32,34,FALSE) -> 42 | J30: =+VLOOKUP($A30,'Data Input'!$A$3:$AX$32,35,FALSE) -> 27.6 | L30: =+VLOOKUP($A30,'Data Input'!$A$3:$AX$32,37,FALSE) -> RET
A31: 240 | B31: =+VLOOKUP(+$A31,'Data Input'!$A$3:$AX$32,2,FALSE) -> Avocet | C31: =+VLOOKUP(+$A31,'Data Input'!$A$3:$AX$32,3,FALSE) -> R Branford | D31: =+VLOOKUP(+$A31,'Data Input'!$A$3:$AX$32,4,FALSE) -> 28 | E31: =+VLOOKUP(+$A31,'Data Input'!$A$3:$AX$32,5,FALSE) -> -16 | F31: =+VLOOKUP(+$A31,'Data Input'!$A$3:$AX$32,6,FALSE) -> RET | G31: =+VLOOKUP(+$A31,'Data Input'!$A$3:$AX$32,7,FALSE) -> B | H31: =+VLOOKUP($A31,'Data Input'!$A$3:$AX$32,33,FALSE) -> 7 | I31: =+VLOOKUP($A31,'Data Input'!$A$3:$AX$32,34,FALSE) -> 2 | J31: =+VLOOKUP($A31,'Data Input'!$A$3:$AX$32,35,FALSE) -> 10.2 | L31: =+VLOOKUP($A31,'Data Input'!$A$3:$AX$32,37,FALSE) -> RET
A33: =COUNT(A3:A31) -> 29
A49: =+COUNT(A3:A48) -> 30

Sheet Moonraker
A1: No | B1: Yacht | C1: Skipper | D1: Length | E1: H/C | F1: P | G1: Class | I1: Elapsed | L1: Pos
H2: H | I2: M | J2: S
A3: 52 | B3: =+VLOOKUP(+$A3,'Data Input'!$A$3:$AX$32,2,FALSE) -> Maidie | C3: =+VLOOKUP(+$A3,'Data Input'!$A$3:$AX$32,3,FALSE) -> M Barnes | D3: =+VLOOKUP(+$A3,'Data Input'!$A$3:$AX$32,4,FALSE) -> 43.2 | E3: =+VLOOKUP(+$A3,'Data Input'!$A$3:$AX$32,5,FALSE) -> 12 | F3: =+VLOOKUP(+$A3,'Data Input'!$A$3:$AX$32,6,FALSE) ->  | G3: =+VLOOKUP(+$A3,'Data Input'!$A$3:$AX$32,7,FALSE) -> A | H3: =+VLOOKUP($A3,'Data Input'!$A$3:$AX$32,27,FALSE) -> 5 | I3: =+VLOOKUP($A3,'Data Input'!$A$3:$AX$32,28,FALSE) -> 1 | J3: =+VLOOKUP($A3,'Data Input'!$A$3:$AX$32,29,FALSE) -> 26 | L3: =+VLOOKUP($A3,'Data Input'!$A$3:$AX$32,31,FALSE) -> 1
A4: 417 | B4: =+VLOOKUP(+$A4,'Data Input'!$A$3:$AX$32,2,FALSE) -> Stellar | C4: =+VLOOKUP(+$A4,'Data Input'!$A$3:$AX$32,3,FALSE) -> T Frary | D4: =+VLOOKUP(+$A4,'Data Input'!$A$3:$AX$32,4,FALSE) -> 31.3 | E4: =+VLOOKUP(+$A4,'Data Input'!$A$3:$AX$32,5,FALSE) -> 16 | F4: =+VLOOKUP(+$A4,'Data Input'!$A$3:$AX$32,6,FALSE) ->  | G4: =+VLOOKUP(+$A4,'Data Input'!$A$3:$AX$32,7,FALSE) -> A | H4: =+VLOOKUP($A4,'Data Input'!$A$3:$AX$32,27,FALSE) -> 5 | I4: =+VLOOKUP($A4,'Data Input'!$A$3:$AX$32,28,FALSE) -> 4 | J4: =+VLOOKUP($A4,'Data Input'!$A$3:$AX$32,29,FALSE) -> 55 | L4: =+VLOOKUP($A4,'Data Input'!$A$3:$AX$32,31,FALSE) -> 2
A5: 177 | B5: =+VLOOKUP(+$A5,'Data Input'!$A$3:$AX$32,2,FALSE) -> Breeze | C5: =+VLOOKUP(+$A5,'Data Input'!$A$3:$AX$32,3,FALSE) -> M Ellis | D5: =+VLOOKUP(+$A5,'Data Input'!$A$3:$AX$32,4,FALSE) -> 32 | E5: =+VLOOKUP(+$A5,'Data Input'!$A$3:$AX$32,5,FALSE) -> 2 | F5: =+VLOOKUP(+$A5,'Data Input'!$A$3:$AX$32,6,FALSE) ->  | G5: =+VLOOKUP(+$A5,'Data Input'!$A$3:$AX$32,7,FALSE) -> A | H5: =+VLOOKUP($A5,'Data Input'!$A$3:$AX$32,27,FALSE) -> 5 | I5: =+VLOOKUP($A5,'Data Input'!$A$3:$AX$32,28,FALSE) -> 17 | J5: =+VLOOKUP($A5,'Data Input'!$A$3:$AX$32,29,FALSE) -> 29 | L5: =+VLOOKUP($A5,'Data Input'!$A$3:$AX$32,31,FALSE) -> 3
A6: 373 | B6: =+VLOOKUP(+$A6,'Data Input'!$A$3:$AX$32,2,FALSE) -> Meggie | C6: =+VLOOKUP(+$A6,'Data Input'!$A$3:$AX$32,3,FALSE) -> J Tansley | D6: =+VLOOKUP(+$A6,'Data Input'!$A$3:$AX$32,4,FALSE) -> 34.9 | E6: =+VLOOKUP(+$A6,'Data Input'!$A$3:$AX$32,5,FALSE) -> 16 | F6: =+VLOOKUP(+$A6,'Data Input'!$A$3:$AX$32,6,FALSE) ->  | G6: =+VLOOKUP(+$A6,'Data Input'!$A$3:$AX$32,7,FALSE) -> A | H6: =+VLOOKUP($A6,'Data Input'!$A$3:$AX$32,27,FALSE) -> 5 | I6: =+VLOOKUP($A6,'Data Input'!$A$3:$AX$32,28,FALSE) -> 28 | J6: =+VLOOKUP($A6,'Data Input'!$A$3:$AX$32,29,FALSE) -> 45 | L6: =+VLOOKUP($A6,'Data Input'!$A$3:$AX$32,31,FALSE) -> 4
A7: 369 | B7: =+VLOOKUP(+$A7,'Data Input'!$A$3:$AX$32,2,FALSE) -> Moonshadow | C7: =+VLOOKUP(+$A7,'Data Input'!$A$3:$AX$32,3,FALSE) -> N Hovey | D7: =+VLOOKUP(+$A7,'Data Input'!$A$3:$AX$32,4,FALSE) -> 31.5 | E7: =+VLOOKUP(+$A7,'Data Input'!$A$3:$AX$32,5,FALSE) -> 4 | F7: =+VLOOKUP(+$A7,'Data Input'!$A$3:$AX$32,6,FALSE) ->  | G7: =+VLOOKUP(+$A7,'Data Input'!$A$3:$AX$32,7,FALSE) -> A | H7: =+VLOOKUP($A7,'Data Input'!$A$3:$AX$32,27,FALSE) -> 5 | I7: =+VLOOKUP($A7,'Data Input'!$A$3:$AX$32,28,FALSE) -> 29 | J7: =+VLOOKUP($A7,'Data Input'!$A$3:$AX$32,29,FALSE) -> 11 | L7: =+VLOOKUP($A7,'Data Input'!$A$3:$AX$32,31,FALSE) -> 5
A8: 335 | B8: =+VLOOKUP(+$A8,'Data Input'!$A$3:$AX$32,2,FALSE) -> Firebird | C8: =+VLOOKUP(+$A8,'Data Input'!$A$3:$AX$32,3,FALSE) -> R Richardson | D8: =+VLOOKUP(+$A8,'Data Input'!$A$3:$AX$32,4,FALSE) -> 30 | E8: =+VLOOKUP(+$A8,'Data Input'!$A$3:$AX$32,5,FALSE) -> 1 | F8: =+VLOOKUP(+$A8,'Data Input'!$A$3:$AX$32,6,FALSE) ->  | G8: =+VLOOKUP(+$A8,'Data Input'!$A$3:$AX$32,7,FALSE) -> A | H8: =+VLOOKUP($A8,'Data Input'!$A$3:$AX$32,27,FALSE) -> 5 | I8: =+VLOOKUP($A8,'Data Input'!$A$3:$AX$32,28,FALSE) -> 36 | J8: =+VLOOKUP($A8,'Data Input'!$A$3:$AX$32,29,FALSE) -> 17 | L8: =+VLOOKUP($A8,'Data Input'!$A$3:$AX$32,31,FALSE) -> 6
A9: 217 | B9: =+VLOOKUP(+$A9,'Data Input'!$A$3:$AX$32,2,FALSE) -> Melinda | C9: =+VLOOKUP(+$A9,'Data Input'!$A$3:$AX$32,3,FALSE) -> P Howes | D9: =+VLOOKUP(+$A9,'Data Input'!$A$3:$AX$32,4,FALSE) -> 27.9 | E9: =+VLOOKUP(+$A9,'Data Input'!$A$3:$AX$32,5,FALSE) -> 1 | F9: =+VLOOKUP(+$A9,'Data Input'!$A$3:$AX$32,6,FALSE) ->  | G9: =+VLOOKUP(+$A9,'Data Input'!$A$3:$AX$32,7,FALSE) -> B | H9: =+VLOOKUP($A9,'Data Input'!$A$3:$AX$32,27,FALSE) -> 5 | I9: =+VLOOKUP($A9,'Data Input'!$A$3:$AX$32,28,FALSE) -> 39 | J9: =+VLOOKUP($A9,'Data Input'!$A$3:$AX$32,29,FALSE) -> 37 | L9: =+VLOOKUP($A9,'Data Input'!$A$3:$AX$32,31,FALSE) -> 7
A10: 368 | B10: =+VLOOKUP(+$A10,'Data Input'!$A$3:$AX$32,2,FALSE) -> Wandering Rose | C10: =+VLOOKUP(+$A10,'Data Input'!$A$3:$AX$32,3,FALSE) -> Radley | D10: =+VLOOKUP(+$A10,'Data Input'!$A$3:$AX$32,4,FALSE) -> 31 | E10: =+VLOOKUP(+$A10,'Data Input'!$A$3:$AX$32,5,FALSE) -> -2 | F10: =+VLOOKUP(+$A10,'Data Input'!$A$3:$AX$32,6,FALSE) ->  | G10: =+VLOOKUP(+$A10,'Data Input'!$A$3:$AX$32,7,FALSE) -> A | H10: =+VLOOKUP($A10,'Data Input'!$A$3:$AX$32,27,FALSE) -> 5 | I10: =+VLOOKUP($A10,'Data Input'!$A$3:$AX$32,28,FALSE) -> 46 | J10: =+VLOOKUP($A10,'Data Input'!$A$3:$AX$32,29,FALSE) -> 43 | L10: =+VLOOKUP($A10,'Data Input'!$A$3:$AX$32,31,FALSE) -> 8
A11: 22 | B11: =+VLOOKUP(+$A11,'Data Input'!$A$3:$AX$32,2,FALSE) -> Moonraker | C11: =+VLOOKUP(+$A11,'Data Input'!$A$3:$AX$32,3,FALSE) -> P Jeckells | D11: =+VLOOKUP(+$A11,'Data Input'!$A$3:$AX$32,4,FALSE) -> 29.5 | E11: =+VLOOKUP(+$A11,'Data Input'!$A$3:$AX$32,5,FALSE) -> 2 | F11: =+VLOOKUP(+$A11,'Data Input'!$A$3:$AX$32,6,FALSE) ->  | G11: =+VLOOKUP(+$A11,'Data Input'!$A$3:$AX$32,7,FALSE) -> A | H11: =+VLOOKUP($A11,'Data Input'!$A$3:$AX$32,27,FALSE) -> 5 | I11: =+VLOOKUP($A11,'Data Input'!$A$3:$AX$32,28,FALSE) -> 47 | J11: =+VLOOKUP($A11,'Data Input'!$A$3:$AX$32,29,FALSE) -> 45 | L11: =+VLOOKUP($A11,'Data Input'!$A$3:$AX$32,31,FALSE) -> 9
A12: 7 | B12: =+VLOOKUP(+$A12,'Data Input'!$A$3:$AX$32,2,FALSE) -> Forester | C12: =+VLOOKUP(+$A12,'Data Input'!$A$3:$AX$32,3,FALSE) -> S Bentall | D12: =+VLOOKUP(+$A12,'Data Input'!$A$3:$AX$32,4,FALSE) -> 32.5 | E12: =+VLOOKUP(+$A12,'Data Input'!$A$3:$AX$32,5,FALSE) -> -8 | F12: =+VLOOKUP(+$A12,'Data Input'!$A$3:$AX$32,6,FALSE) ->  | G12: =+VLOOKUP(+$A12,'Data Input'!$A$3:$AX$32,7,FALSE) -> A | H12: =+VLOOKUP($A12,'Data Input'!$A$3:$AX$32,27,FALSE) -> 5 | I12: =+VLOOKUP($A12,'Data Input'!$A$3:$AX$32,28,FALSE) -> 52 | J12: =+VLOOKUP($A12,'Data Input'!$A$3:$AX$32,29,FALSE) -> 47 | L12: =+VLOOKUP($A12,'Data Input'!$A$3:$AX$32,31,FALSE) -> 10
A13: 244 | B13: =+VLOOKUP(+$A13,'Data Input'!$A$3:$AX$32,2,FALSE) -> Catspaw | C13: =+VLOOKUP(+$A13,'Data Input'!$A$3:$AX$32,3,FALSE) -> B Wilkins | D13: =+VLOOKUP(+$A13,'Data Input'!$A$3:$AX$32,4,FALSE) -> 28 | E13: =+VLOOKUP(+$A13,'Data Input'!$A$3:$AX$32,5,FALSE) -> -5 | F13: =+VLOOKUP(+$A13,'Data Input'!$A$3:$AX$32,6,FALSE) ->  | G13: =+VLOOKUP(+$A13,'Data Input'!$A$3:$AX$32,7,FALSE) -> B | H13: =+VLOOKUP($A13,'Data Input'!$A$3:$AX$32,27,FALSE) -> 5 | I13: =+VLOOKUP($A13,'Data Input'!$A$3:$AX$32,28,FALSE) -> 57 | J13: =+VLOOKUP($A13,'Data Input'!$A$3:$AX$32,29,FALSE) -> 26 | L13: =+VLOOKUP($A13,'Data Input'!$A$3:$AX$32,31,FALSE) -> 11
A14: 370 | B14: =+VLOOKUP(+$A14,'Data Input'!$A$3:$AX$32,2,FALSE) -> Glory | C14: =+VLOOKUP(+$A14,'Data Input'!$A$3:$AX$32,3,FALSE) -> C Brown | D14: =+VLOOKUP(+$A14,'Data Input'!$A$3:$AX$32,4,FALSE) -> 35 | E14: =+VLOOKUP(+$A14,'Data Input'!$A$3:$AX$32,5,FALSE) -> -6 | F14: =+VLOOKUP(+$A14,'Data Input'!$A$3:$AX$32,6,FALSE) ->  | G14: =+VLOOKUP(+$A14,'Data Input'!$A$3:$AX$32,7,FALSE) -> A | H14: =+VLOOKUP($A14,'Data Input'!$A$3:$AX$32,27,FALSE) -> 6 | I14: =+VLOOKUP($A14,'Data Input'!$A$3:$AX$32,28,FALSE) -> 6 | J14: =+VLOOKUP($A14,'Data Input'!$A$3:$AX$32,29,FALSE) -> 48 | L14: =+VLOOKUP($A14,'Data Input'!$A$3:$AX$32,31,FALSE) -> 12
A15: 199 | B15: =+VLOOKUP(+$A15,'Data Input'!$A$3:$AX$32,2,FALSE) -> Morning Calm | C15: =+VLOOKUP(+$A15,'Data Input'!$A$3:$AX$32,3,FALSE) -> W Clark | D15: =+VLOOKUP(+$A15,'Data Input'!$A$3:$AX$32,4,FALSE) -> 26 | E15: =+VLOOKUP(+$A15,'Data Input'!$A$3:$AX$32,5,FALSE) -> -9 | F15: =+VLOOKUP(+$A15,'Data Input'!$A$3:$AX$32,6,FALSE) ->  | G15: =+VLOOKUP(+$A15,'Data Input'!$A$3:$AX$32,7,FALSE) -> B | H15: =+VLOOKUP($A15,'Data Input'!$A$3:$AX$32,27,FALSE) -> 6 | I15: =+VLOOKUP($A15,'Data Input'!$A$3:$AX$32,28,FALSE) -> 10 | J15: =+VLOOKUP($A15,'Data Input'!$A$3:$AX$32,29,FALSE) -> 52 | L15: =+VLOOKUP($A15,'Data Input'!$A$3:$AX$32,31,FALSE) -> 13
A16: 400 | B16: =+VLOOKUP(+$A16,'Data Input'!$A$3:$AX$32,2,FALSE) -> Swallowtail | C16: =+VLOOKUP(+$A16,'Data Input'!$A$3:$AX$32,3,FALSE) -> K Halifax | D16: =+VLOOKUP(+$A16,'Data Input'!$A$3:$AX$32,4,FALSE) -> 26.5 | E16: =+VLOOKUP(+$A16,'Data Input'!$A$3:$AX$32,5,FALSE) -> -7 | F16: =+VLOOKUP(+$A16,'Data Input'!$A$3:$AX$32,6,FALSE) ->  | G16: =+VLOOKUP(+$A16,'Data Input'!$A$3:$AX$32,7,FALSE) -> B | H16: =+VLOOKUP($A16,'Data Input'!$A$3:$AX$32,27,FALSE) -> 6 | I16: =+VLOOKUP($A16,'Data Input'!$A$3:$AX$32,28,FALSE) -> 13 | J16: =+VLOOKUP($A16,'Data Input'!$A$3:$AX$32,29,FALSE) -> 7 | L16: =+VLOOKUP($A16,'Data Input'!$A$3:$AX$32,31,FALSE) -> 14
A17: 24 | B17: =+VLOOKUP(+$A17,'Data Input'!$A$3:$AX$32,2,FALSE) -> Pippa | C17: =+VLOOKUP(+$A17,'Data Input'!$A$3:$AX$32,3,FALSE) -> G Angell | D17: =+VLOOKUP(+$A17,'Data Input'!$A$3:$AX$32,4,FALSE) -> 27.5 | E17: =+VLOOKUP(+$A17,'Data Input'!$A$3:$AX$32,5,FALSE) -> -7 | F17: =+VLOOKUP(+$A17,'Data Input'!$A$3:$AX$32,6,FALSE) ->  | G17: =+VLOOKUP(+$A17,'Data Input'!$A$3:$AX$32,7,FALSE) -> B | H17: =+VLOOKUP($A17,'Data Input'!$A$3:$AX$32,27,FALSE) -> 6 | I17: =+VLOOKUP($A17,'Data Input'!$A$3:$AX$32,28,FALSE) -> 14 | J17: =+VLOOKUP($A17,'Data Input'!$A$3:$AX$32,29,FALSE) -> 34 | L17: =+VLOOKUP($A17,'Data Input'!$A$3:$AX$32,31,FALSE) -> 15
A18: 117 | B18: =+VLOOKUP(+$A18,'Data Input'!$A$3:$AX$32,2,FALSE) -> Anne | C18: =+VLOOKUP(+$A18,'Data Input'!$A$3:$AX$32,3,FALSE) -> D Church | D18: =+VLOOKUP(+$A18,'Data Input'!$A$3:$AX$32,4,FALSE) -> 34.5 | E18: =+VLOOKUP(+$A18,'Data Input'!$A$3:$AX$32,5,FALSE) -> -3 | F18: =+VLOOKUP(+$A18,'Data Input'!$A$3:$AX$32,6,FALSE) ->  | G18: =+VLOOKUP(+$A18,'Data Input'!$A$3:$AX$32,7,FALSE) -> A | H18: =+VLOOKUP($A18,'Data Input'!$A$3:$AX$32,27,FALSE) -> 6 | I18: =+VLOOKUP($A18,'Data Input'!$A$3:$AX$32,28,FALSE) -> 14 | J18: =+VLOOKUP($A18,'Data Input'!$A$3:$AX$32,29,FALSE) -> 50 | L18: =+VLOOKUP($A18,'Data Input'!$A$3:$AX$32,31,FALSE) -> 16
A19: 418 | B19: =+VLOOKUP(+$A19,'Data Input'!$A$3:$AX$32,2,FALSE) -> Tinkerbell | C19: =+VLOOKUP(+$A19,'Data Input'!$A$3:$AX$32,3,FALSE) -> A Lincoln | D19: =+VLOOKUP(+$A19,'Data Input'!$A$3:$AX$32,4,FALSE) -> 25.2 | E19: =+VLOOKUP(+$A19,'Data Input'!$A$3:$AX$32,5,FALSE) -> -6 | F19: =+VLOOKUP(+$A19,'Data Input'!$A$3:$AX$32,6,FALSE) ->  | G19: =+VLOOKUP(+$A19,'Data Input'!$A$3:$AX$32,7,FALSE) -> B | H19: =+VLOOKUP($A19,'Data Input'!$A$3:$AX$32,27,FALSE) -> 6 | I19: =+VLOOKUP($A19,'Data Input'!$A$3:$AX$32,28,FALSE) -> 16 | J19: =+VLOOKUP($A19,'Data Input'!$A$3:$AX$32,29,FALSE) -> 21 | L19: =+VLOOKUP($A19,'Data Input'!$A$3:$AX$32,31,FALSE) -> 17
A20: 179 | B20: =+VLOOKUP(+$A20,'Data Input'!$A$3:$AX$32,2,FALSE) -> Waxwing | C20: =+VLOOKUP(+$A20,'Data Input'!$A$3:$AX$32,3,FALSE) -> S Clayton | D20: =+VLOOKUP(+$A20,'Data Input'!$A$3:$AX$32,4,FALSE) -> 28 | E20: =+VLOOKUP(+$A20,'Data Input'!$A$3:$AX$32,5,FALSE) -> -8 | F20: =+VLOOKUP(+$A20,'Data Input'!$A$3:$AX$32,6,FALSE) ->  | G20: =+VLOOKUP(+$A20,'Data Input'!$A$3:$AX$32,7,FALSE) -> B | H20: =+VLOOKUP($A20,'Data Input'!$A$3:$AX$32,27,FALSE) -> 6 | I20: =+VLOOKUP($A20,'Data Input'!$A$3:$AX$32,28,FALSE) -> 18 | J20: =+VLOOKUP($A20,'Data Input'!$A$3:$AX$32,29,FALSE) -> 3 | L20: =+VLOOKUP($A20,'Data Input'!$A$3:$AX$32,31,FALSE) -> 18
A21: 15 | B21: =+VLOOKUP(+$A21,'Data Input'!$A$3:$AX$32,2,FALSE) -> Pirate | C21: =+VLOOKUP(+$A21,'Data Input'!$A$3:$AX$32,3,FALSE) -> T Moore | D21: =+VLOOKUP(+$A21,'Data Input'!$A$3:$AX$32,4,FALSE) -> 30 | E21: =+VLOOKUP(+$A21,'Data Input'!$A$3:$AX$32,5,FALSE) -> -7 | F21: =+VLOOKUP(+$A21,'Data Input'!$A$3:$AX$32,6,FALSE) ->  | G21: =+VLOOKUP(+$A21,'Data Input'!$A$3:$AX$32,7,FALSE) -> A | H21: =+VLOOKUP($A21,'Data Input'!$A$3:$AX$32,27,FALSE) -> 6 | I21: =+VLOOKUP($A21,'Data Input'!$A$3:$AX$32,28,FALSE) -> 21 | J21: =+VLOOKUP($A21,'Data Input'!$A$3:$AX$32,29,FALSE) -> 41 | L21: =+VLOOKUP($A21,'Data Input'!$A$3:$AX$32,31,FALSE) -> 19
A22: 224 | B22: =+VLOOKUP(+$A22,'Data Input'!$A$3:$AX$32,2,FALSE) -> Anna | C22: =+VLOOKUP(+$A22,'Data Input'!$A$3:$AX$32,3,FALSE) -> R Branscombe | D22: =+VLOOKUP(+$A22,'Data Input'!$A$3:$AX$32,4,FALSE) -> 25 | E22: =+VLOOKUP(+$A22,'Data Input'!$A$3:$AX$32,5,FALSE) -> -9 | F22: =+VLOOKUP(+$A22,'Data Input'!$A$3:$AX$32,6,FALSE) ->  | G22: =+VLOOKUP(+$A22,'Data Input'!$A$3:$AX$32,7,FALSE) -> B | H22: =+VLOOKUP($A22,'Data Input'!$A$3:$AX$32,27,FALSE) -> 6 | I22: =+VLOOKUP($A22,'Data Input'!$A$3:$AX$32,28,FALSE) -> 32 | J22: =+VLOOKUP($A22,'Data Input'!$A$3:$AX$32,29,FALSE) -> 4 | L22: =+VLOOKUP($A22,'Data Input'!$A$3:$AX$32,31,FALSE) -> 20
A23: 155 | B23: =+VLOOKUP(+$A23,'Data Input'!$A$3:$AX$32,2,FALSE) -> Stratos | C23: =+VLOOKUP(+$A23,'Data Input'!$A$3:$AX$32,3,FALSE) -> J Townley | D23: =+VLOOKUP(+$A23,'Data Input'!$A$3:$AX$32,4,FALSE) -> 22.6 | E23: =+VLOOKUP(+$A23,'Data Input'!$A$3:$AX$32,5,FALSE) -> -17 | F23: =+VLOOKUP(+$A23,'Data Input'!$A$3:$AX$32,6,FALSE) ->  | G23: =+VLOOKUP(+$A23,'Data Input'!$A$3:$AX$32,7,FALSE) -> C | H23: =+VLOOKUP($A23,'Data Input'!$A$3:$AX$32,27,FALSE) -> 7 | I23: =+VLOOKUP($A23,'Data Input'!$A$3:$AX$32,28,FALSE) -> 4 | J23: =+VLOOKUP($A23,'Data Input'!$A$3:$AX$32,29,FALSE) -> 34 | L23: =+VLOOKUP($A23,'Data Input'!$A$3:$AX$32,31,FALSE) -> 21
A24: 87 | B24: =+VLOOKUP(+$A24,'Data Input'!$A$3:$AX$32,2,FALSE) -> Modwena | C24: =+VLOOKUP(+$A24,'Data Input'!$A$3:$AX$32,3,FALSE) -> M Cassidy | D24: =+VLOOKUP(+$A24,'Data Input'!$A$3:$AX$32,4,FALSE) -> 24.8 | E24: =+VLOOKUP(+$A24,'Data Input'!$A$3:$AX$32,5,FALSE) -> -18 | F24: =+VLOOKUP(+$A24,'Data Input'!$A$3:$AX$32,6,FALSE) ->  | G24: =+VLOOKUP(+$A24,'Data Input'!$A$3:$AX$32,7,FALSE) -> C | H24: =+VLOOKUP($A24,'Data Input'!$A$3:$AX$32,27,FALSE) -> 7 | I24: =+VLOOKUP($A24,'Data Input'!$A$3:$AX$32,28,FALSE) -> 13 | J24: =+VLOOKUP($A24,'Data Input'!$A$3:$AX$32,29,FALSE) -> 14 | L24: =+VLOOKUP($A24,'Data Input'!$A$3:$AX$32,31,FALSE) -> 22
A25: 78 | B25: =+VLOOKUP(+$A25,'Data Input'!$A$3:$AX$32,2,FALSE) -> Halcyon | C25: =+VLOOKUP(+$A25,'Data Input'!$A$3:$AX$32,3,FALSE) -> R Wilson | D25: =+VLOOKUP(+$A25,'Data Input'!$A$3:$AX$32,4,FALSE) -> 29.5 | E25: =+VLOOKUP(+$A25,'Data Input'!$A$3:$AX$32,5,FALSE) -> -7 | F25: =+VLOOKUP(+$A25,'Data Input'!$A$3:$AX$32,6,FALSE) -> DNS | G25: =+VLOOKUP(+$A25,'Data Input'!$A$3:$AX$32,7,FALSE) -> A | H25: =+VLOOKUP($A25,'Data Input'!$A$3:$AX$32,27,FALSE) ->  | I25: =+VLOOKUP($A25,'Data Input'!$A$3:$AX$32,28,FALSE) ->  | J25: =+VLOOKUP($A25,'Data Input'!$A$3:$AX$32,29,FALSE) ->  | L25: =+VLOOKUP($A25,'Data Input'!$A$3:$AX$32,31,FALSE) -> DNS
A26: 323 | B26: =+VLOOKUP(+$A26,'Data Input'!$A$3:$AX$32,2,FALSE) -> Starlight Lady | C26: =+VLOOKUP(+$A26,'Data Input'!$A$3:$AX$32,3,FALSE) -> N.Matthews | D26: =+VLOOKUP(+$A26,'Data Input'!$A$3:$AX$32,4,FALSE) -> 30 | E26: =+VLOOKUP(+$A26,'Data Input'!$A$3:$AX$32,5,FALSE) -> 13 | F26: =+VLOOKUP(+$A26,'Data Input'!$A$3:$AX$32,6,FALSE) -> DNS | G26: =+VLOOKUP(+$A26,'Data Input'!$A$3:$AX$32,7,FALSE) -> A | H26: =+VLOOKUP($A26,'Data Input'!$A$3:$AX$32,27,FALSE) ->  | I26: =+VLOOKUP($A26,'Data Input'!$A$3:$AX$32,28,FALSE) ->  | J26: =+VLOOKUP($A26,'Data Input'!$A$3:$AX$32,29,FALSE) ->  | L26: =+VLOOKUP($A26,'Data Input'!$A$3:$AX$32,31,FALSE) -> DNS
A27: 141 | B27: =+VLOOKUP(+$A27,'Data Input'!$A$3:$AX$32,2,FALSE) -> Nirvana | C27: =+VLOOKUP(+$A27,'Data Input'!$A$3:$AX$32,3,FALSE) -> M Claridge | D27: =+VLOOKUP(+$A27,'Data Input'!$A$3:$AX$32,4,FALSE) -> 20 | E27: =+VLOOKUP(+$A27,'Data Input'!$A$3:$AX$32,5,FALSE) -> -23 | F27: =+VLOOKUP(+$A27,'Data Input'!$A$3:$AX$32,6,FALSE) -> P | G27: =+VLOOKUP(+$A27,'Data Input'!$A$3:$AX$32,7,FALSE) -> C | H27: =+VLOOKUP($A27,'Data Input'!$A$3:$AX$32,27,FALSE) -> 7 | I27: =+VLOOKUP($A27,'Data Input'!$A$3:$AX$32,28,FALSE) -> 32 | J27: =+VLOOKUP($A27,'Data Input'!$A$3:$AX$32,29,FALSE) -> 1 | L27: =+VLOOKUP($A27,'Data Input'!$A$3:$AX$32,31,FALSE) -> P
A28: 226 | B28: =+VLOOKUP(+$A28,'Data Input'!$A$3:$AX$32,2,FALSE) -> Medina | C28: =+VLOOKUP(+$A28,'Data Input'!$A$3:$AX$32,3,FALSE) -> S Brown | D28: =+VLOOKUP(+$A28,'Data Input'!$A$3:$AX$32,4,FALSE) -> 26 | E28: =+VLOOKUP(+$A28,'Data Input'!$A$3:$AX$32,5,FALSE) -> -9 | F28: =+VLOOKUP(+$A28,'Data Input'!$A$3:$AX$32,6,FALSE) -> P | G28: =+VLOOKUP(+$A28,'Data Input'!$A$3:$AX$32,7,FALSE) -> B | H28: =+VLOOKUP($A28,'Data Input'!$A$3:$AX$32,27,FALSE) -> 7 | I28: =+VLOOKUP($A28,'Data Input'!$A$3:$AX$32,28,FALSE) -> 6 | J28: =+VLOOKUP($A28,'Data Input'!$A$3:$AX$32,29,FALSE) -> 28 | L28: =+VLOOKUP($A28,'Data Input'!$A$3:$AX$32,31,FALSE) -> P
A29: 356 | B29: =+VLOOKUP(+$A29,'Data Input'!$A$3:$AX$32,2,FALSE) -> Amsel | C29: =+VLOOKUP(+$A29,'Data Input'!$A$3:$AX$32,3,FALSE) -> D McCarter | D29: =+VLOOKUP(+$A29,'Data Input'!$A$3:$AX$32,4,FALSE) -> 28 | E29: =+VLOOKUP(+$A29,'Data Input'!$A$3:$AX$32,5,FALSE) -> -18 | F29: =+VLOOKUP(+$A29,'Data Input'!$A$3:$AX$32,6,FALSE) -> RET | G29: =+VLOOKUP(+$A29,'Data Input'!$A$3:$AX$32,7,FALSE) -> B | H29: =+VLOOKUP($A29,'Data Input'!$A$3:$AX$32,27,FALSE) -> 7 | I29: =+VLOOKUP($A29,'Data Input'!$A$3:$AX$32,28,FALSE) -> 53 | J29: =+VLOOKUP($A29,'Data Input'!$A$3:$AX$32,29,FALSE) -> 46 | L29: =+VLOOKUP($A29,'Data Input'!$A$3:$AX$32,31,FALSE) -> RET
A30: 222 | B30: =+VLOOKUP(+$A30,'Data Input'!$A$3:$AX$32,2,FALSE) -> Swallowtail | C30: =+VLOOKUP(+$A30,'Data Input'!$A$3:$AX$32,3,FALSE) -> J Wells | D30: =+VLOOKUP(+$A30,'Data Input'!$A$3:$AX$32,4,FALSE) -> 28 | E30: =+VLOOKUP(+$A30,'Data Input'!$A$3:$AX$32,5,FALSE) -> -5 | F30: =+VLOOKUP(+$A30,'Data Input'!$A$3:$AX$32,6,FALSE) -> RET | G30: =+VLOOKUP(+$A30,'Data Input'!$A$3:$AX$32,7,FALSE) -> B | H30: =+VLOOKUP($A30,'Data Input'!$A$3:$AX$32,27,FALSE) -> 8 | I30: =+VLOOKUP($A30,'Data Input'!$A$3:$AX$32,28,FALSE) -> 6 | J30: =+VLOOKUP($A30,'Data Input'!$A$3:$AX$32,29,FALSE) -> 48 | L30: =+VLOOKUP($A30,'Data Input'!$A$3:$AX$32,31,FALSE) -> RET
A31: 240 | B31: =+VLOOKUP(+$A31,'Data Input'!$A$3:$AX$32,2,FALSE) -> Avocet | C31: =+VLOOKUP(+$A31,'Data Input'!$A$3:$AX$32,3,FALSE) -> R Branford | D31: =+VLOOKUP(+$A31,'Data Input'!$A$3:$AX$32,4,FALSE) -> 28 | E31: =+VLOOKUP(+$A31,'Data Input'!$A$3:$AX$32,5,FALSE) -> -16 | F31: =+VLOOKUP(+$A31,'Data Input'!$A$3:$AX$32,6,FALSE) -> RET | G31: =+VLOOKUP(+$A31,'Data Input'!$A$3:$AX$32,7,FALSE) -> B | H31: =+VLOOKUP($A31,'Data Input'!$A$3:$AX$32,27,FALSE) -> 8 | I31: =+VLOOKUP($A31,'Data Input'!$A$3:$AX$32,28,FALSE) -> 22 | J31: =+VLOOKUP($A31,'Data Input'!$A$3:$AX$32,29,FALSE) -> 35 | L31: =+VLOOKUP($A31,'Data Input'!$A$3:$AX$32,31,FALSE) -> RET
A49: =+COUNT(A3:A48) -> 29

Sheet Classes
A1: No | B1: Yacht | C1: Skipper | D1: Length | E1: H/C | F1: P | G1: Class | I1: Corrected | L1: Pos
H2: H | I2: M | J2: S
B3: Starlight Lady
A5: 177 | B5: =+VLOOKUP(+$A5,'Data Input'!$A$3:$AX$32,2,FALSE) -> Breeze | C5: =+VLOOKUP(+$A5,'Data Input'!$A$3:$AX$32,3,FALSE) -> M Ellis | D5: =+VLOOKUP(+$A5,'Data Input'!$A$3:$AX$32,4,FALSE) -> 32 | E5: =+VLOOKUP(+$A5,'Data Input'!$A$3:$AX$32,5,FALSE) -> 2 | F5: =+VLOOKUP(+$A5,'Data Input'!$A$3:$AX$32,6,FALSE) ->  | G5: =+VLOOKUP(+$A5,'Data Input'!$A$3:$AX$32,7,FALSE) -> A | H5: =+VLOOKUP($A5,'Data Input'!$A$3:$AX$32,33,FALSE) -> 5 | I5: =+VLOOKUP($A5,'Data Input'!$A$3:$AX$32,34,FALSE) -> 23 | J5: =+VLOOKUP($A5,'Data Input'!$A$3:$AX$32,35,FALSE) -> 49.98 | L5: =+VLOOKUP($A5,'Data Input'!$A$3:$AX$32,37,FALSE) -> 1
A6: 7 | B6: =+VLOOKUP(+$A6,'Data Input'!$A$3:$AX$32,2,FALSE) -> Forester | C6: =+VLOOKUP(+$A6,'Data Input'!$A$3:$AX$32,3,FALSE) -> S Bentall | D6: =+VLOOKUP(+$A6,'Data Input'!$A$3:$AX$32,4,FALSE) -> 32.5 | E6: =+VLOOKUP(+$A6,'Data Input'!$A$3:$AX$32,5,FALSE) -> -8 | F6: =+VLOOKUP(+$A6,'Data Input'!$A$3:$AX$32,6,FALSE) ->  | G6: =+VLOOKUP(+$A6,'Data Input'!$A$3:$AX$32,7,FALSE) -> A | H6: =+VLOOKUP($A6,'Data Input'!$A$3:$AX$32,33,FALSE) -> 5 | I6: =+VLOOKUP($A6,'Data Input'!$A$3:$AX$32,34,FALSE) -> 24 | J6: =+VLOOKUP($A6,'Data Input'!$A$3:$AX$32,35,FALSE) -> 33.64 | L6: 2
A7: 52 | B7: =+VLOOKUP(+$A7,'Data Input'!$A$3:$AX$32,2,FALSE) -> Maidie | C7: =+VLOOKUP(+$A7,'Data Input'!$A$3:$AX$32,3,FALSE) -> M Barnes | D7: =+VLOOKUP(+$A7,'Data Input'!$A$3:$AX$32,4,FALSE) -> 43.2 | E7: =+VLOOKUP(+$A7,'Data Input'!$A$3:$AX$32,5,FALSE) -> 12 | F7: =+VLOOKUP(+$A7,'Data Input'!$A$3:$AX$32,6,FALSE) ->  | G7: =+VLOOKUP(+$A7,'Data Input'!$A$3:$AX$32,7,FALSE) -> A | H7: =+VLOOKUP($A7,'Data Input'!$A$3:$AX$32,33,FALSE) -> 5 | I7: =+VLOOKUP($A7,'Data Input'!$A$3:$AX$32,34,FALSE) -> 37 | J7: =+VLOOKUP($A7,'Data Input'!$A$3:$AX$32,35,FALSE) -> 36.32 | L7: 3
A8: 335 | B8: =+VLOOKUP(+$A8,'Data Input'!$A$3:$AX$32,2,FALSE) -> Firebird | C8: =+VLOOKUP(+$A8,'Data Input'!$A$3:$AX$32,3,FALSE) -> R Richardson | D8: =+VLOOKUP(+$A8,'Data Input'!$A$3:$AX$32,4,FALSE) -> 30 | E8: =+VLOOKUP(+$A8,'Data Input'!$A$3:$AX$32,5,FALSE) -> 1 | F8: =+VLOOKUP(+$A8,'Data Input'!$A$3:$AX$32,6,FALSE) ->  | G8: =+VLOOKUP(+$A8,'Data Input'!$A$3:$AX$32,7,FALSE) -> A | H8: =+VLOOKUP($A8,'Data Input'!$A$3:$AX$32,33,FALSE) -> 5 | I8: =+VLOOKUP($A8,'Data Input'!$A$3:$AX$32,34,FALSE) -> 39 | J8: =+VLOOKUP($A8,'Data Input'!$A$3:$AX$32,35,FALSE) -> 38.77 | L8: 4
A9: 368 | B9: =+VLOOKUP(+$A9,'Data Input'!$A$3:$AX$32,2,FALSE) -> Wandering Rose | C9: =+VLOOKUP(+$A9,'Data Input'!$A$3:$AX$32,3,FALSE) -> Radley | D9: =+VLOOKUP(+$A9,'Data Input'!$A$3:$AX$32,4,FALSE) -> 31 | E9: =+VLOOKUP(+$A9,'Data Input'!$A$3:$AX$32,5,FALSE) -> -2 | F9: =+VLOOKUP(+$A9,'Data Input'!$A$3:$AX$32,6,FALSE) ->  | G9: =+VLOOKUP(+$A9,'Data Input'!$A$3:$AX$32,7,FALSE) -> A | H9: =+VLOOKUP($A9,'Data Input'!$A$3:$AX$32,33,FALSE) -> 5 | I9: =+VLOOKUP($A9,'Data Input'!$A$3:$AX$32,34,FALSE) -> 39 | J9: =+VLOOKUP($A9,'Data Input'!$A$3:$AX$32,35,FALSE) -> 46.94 | L9: 5
A10: 369 | B10: =+VLOOKUP(+$A10,'Data Input'!$A$3:$AX$32,2,FALSE) -> Moonshadow | C10: =+VLOOKUP(+$A10,'Data Input'!$A$3:$AX$32,3,FALSE) -> N Hovey | D10: =+VLOOKUP(+$A10,'Data Input'!$A$3:$AX$32,4,FALSE) -> 31.5 | E10: =+VLOOKUP(+$A10,'Data Input'!$A$3:$AX$32,5,FALSE) -> 4 | F10: =+VLOOKUP(+$A10,'Data Input'!$A$3:$AX$32,6,FALSE) ->  | G10: =+VLOOKUP(+$A10,'Data Input'!$A$3:$AX$32,7,FALSE) -> A | H10: =+VLOOKUP($A10,'Data Input'!$A$3:$AX$32,33,FALSE) -> 5 | I10: =+VLOOKUP($A10,'Data Input'!$A$3:$AX$32,34,FALSE) -> 42 | J10: =+VLOOKUP($A10,'Data Input'!$A$3:$AX$32,35,FALSE) -> 21.04 | L10: 6
A11: 370 | B11: =+VLOOKUP(+$A11,'Data Input'!$A$3:$AX$32,2,FALSE) -> Glory | C11: =+VLOOKUP(+$A11,'Data Input'!$A$3:$AX$32,3,FALSE) -> C Brown | D11: =+VLOOKUP(+$A11,'Data Input'!$A$3:$AX$32,4,FALSE) -> 35 | E11: =+VLOOKUP(+$A11,'Data Input'!$A$3:$AX$32,5,FALSE) -> -6 | F11: =+VLOOKUP(+$A11,'Data Input'!$A$3:$AX$32,6,FALSE) ->  | G11: =+VLOOKUP(+$A11,'Data Input'!$A$3:$AX$32,7,FALSE) -> A | H11: =+VLOOKUP($A11,'Data Input'!$A$3:$AX$32,33,FALSE) -> 5 | I11: =+VLOOKUP($A11,'Data Input'!$A$3:$AX$32,34,FALSE) -> 44 | J11: =+VLOOKUP($A11,'Data Input'!$A$3:$AX$32,35,FALSE) -> 47.52 | L11: 7
A12: 417 | B12: =+VLOOKUP(+$A12,'Data Input'!$A$3:$AX$32,2,FALSE) -> Stellar | C12: =+VLOOKUP(+$A12,'Data Input'!$A$3:$AX$32,3,FALSE) -> T Frary | D12: =+VLOOKUP(+$A12,'Data Input'!$A$3:$AX$32,4,FALSE) -> 31.3 | E12: =+VLOOKUP(+$A12,'Data Input'!$A$3:$AX$32,5,FALSE) -> 16 | F12: =+VLOOKUP(+$A12,'Data Input'!$A$3:$AX$32,6,FALSE) ->  | G12: =+VLOOKUP(+$A12,'Data Input'!$A$3:$AX$32,7,FALSE) -> A | H12: =+VLOOKUP($A12,'Data Input'!$A$3:$AX$32,33,FALSE) -> 5 | I12: =+VLOOKUP($A12,'Data Input'!$A$3:$AX$32,34,FALSE) -> 53 | J12: =+VLOOKUP($A12,'Data Input'!$A$3:$AX$32,35,FALSE) -> 42.2 | L12: 8
A13: 22 | B13: =+VLOOKUP(+$A13,'Data Input'!$A$3:$AX$32,2,FALSE) -> Moonraker | C13: =+VLOOKUP(+$A13,'Data Input'!$A$3:$AX$32,3,FALSE) -> P Jeckells | D13: =+VLOOKUP(+$A13,'Data Input'!$A$3:$AX$32,4,FALSE) -> 29.5 | E13: =+VLOOKUP(+$A13,'Data Input'!$A$3:$AX$32,5,FALSE) -> 2 | F13: =+VLOOKUP(+$A13,'Data Input'!$A$3:$AX$32,6,FALSE) ->  | G13: =+VLOOKUP(+$A13,'Data Input'!$A$3:$AX$32,7,FALSE) -> A | H13: =+VLOOKUP($A13,'Data Input'!$A$3:$AX$32,33,FALSE) -> 5 | I13: =+VLOOKUP($A13,'Data Input'!$A$3:$AX$32,34,FALSE) -> 54 | J13: =+VLOOKUP($A13,'Data Input'!$A$3:$AX$32,35,FALSE) -> 42.3 | L13: 9
A14: 15 | B14: =+VLOOKUP(+$A14,'Data Input'!$A$3:$AX$32,2,FALSE) -> Pirate | C14: =+VLOOKUP(+$A14,'Data Input'!$A$3:$AX$32,3,FALSE) -> T Moore | D14: =+VLOOKUP(+$A14,'Data Input'!$A$3:$AX$32,4,FALSE) -> 30 | E14: =+VLOOKUP(+$A14,'Data Input'!$A$3:$AX$32,5,FALSE) -> -7 | F14: =+VLOOKUP(+$A14,'Data Input'!$A$3:$AX$32,6,FALSE) ->  | G14: =+VLOOKUP(+$A14,'Data Input'!$A$3:$AX$32,7,FALSE) -> A | H14: =+VLOOKUP($A14,'Data Input'!$A$3:$AX$32,33,FALSE) -> 5 | I14: =+VLOOKUP($A14,'Data Input'!$A$3:$AX$32,34,FALSE) -> 54 | J14: =+VLOOKUP($A14,'Data Input'!$A$3:$AX$32,35,FALSE) -> 57.93 | L14: 10
A15: 117 | B15: =+VLOOKUP(+$A15,'Data Input'!$A$3:$AX$32,2,FALSE) -> Anne | C15: =+VLOOKUP(+$A15,'Data Input'!$A$3:$AX$32,3,FALSE) -> D Church | D15: =+VLOOKUP(+$A15,'Data Input'!$A$3:$AX$32,4,FALSE) -> 34.5 | E15: =+VLOOKUP(+$A15,'Data Input'!$A$3:$AX$32,5,FALSE) -> -3 | F15: =+VLOOKUP(+$A15,'Data Input'!$A$3:$AX$32,6,FALSE) ->  | G15: =+VLOOKUP(+$A15,'Data Input'!$A$3:$AX$32,7,FALSE) -> A | H15: =+VLOOKUP($A15,'Data Input'!$A$3:$AX$32,33,FALSE) -> 6 | I15: =+VLOOKUP($A15,'Data Input'!$A$3:$AX$32,34,FALSE) -> 3 | J15: =+VLOOKUP($A15,'Data Input'!$A$3:$AX$32,35,FALSE) -> 35.3 | L15: 11
A16: 373 | B16: =+VLOOKUP(+$A16,'Data Input'!$A$3:$AX$32,2,FALSE) -> Meggie | C16: =+VLOOKUP(+$A16,'Data Input'!$A$3:$AX$32,3,FALSE) -> J Tansley | D16: =+VLOOKUP(+$A16,'Data Input'!$A$3:$AX$32,4,FALSE) -> 34.9 | E16: =+VLOOKUP(+$A16,'Data Input'!$A$3:$AX$32,5,FALSE) -> 16 | F16: =+VLOOKUP(+$A16,'Data Input'!$A$3:$AX$32,6,FALSE) ->  | G16: =+VLOOKUP(+$A16,'Data Input'!$A$3:$AX$32,7,FALSE) -> A | H16: =+VLOOKUP($A16,'Data Input'!$A$3:$AX$32,33,FALSE) -> 6 | I16: =+VLOOKUP($A16,'Data Input'!$A$3:$AX$32,34,FALSE) -> 21 | J16: =+VLOOKUP($A16,'Data Input'!$A$3:$AX$32,35,FALSE) -> 21 | L16: 12
A17: 78 | B17: =+VLOOKUP(+$A17,'Data Input'!$A$3:$AX$32,2,FALSE) -> Halcyon | C17: =+VLOOKUP(+$A17,'Data Input'!$A$3:$AX$32,3,FALSE) -> R Wilson | D17: =+VLOOKUP(+$A17,'Data Input'!$A$3:$AX$32,4,FALSE) -> 29.5 | E17: =+VLOOKUP(+$A17,'Data Input'!$A$3:$AX$32,5,FALSE) -> -7 | F17: =+VLOOKUP(+$A17,'Data Input'!$A$3:$AX$32,6,FALSE) -> DNS | G17: =+VLOOKUP(+$A17,'Data Input'!$A$3:$AX$32,7,FALSE) -> A | H17: =+VLOOKUP($A17,'Data Input'!$A$3:$AX$32,33,FALSE) ->  | I17: =+VLOOKUP($A17,'Data Input'!$A$3:$AX$32,34,FALSE) ->  | J17: =+VLOOKUP($A17,'Data Input'!$A$3:$AX$32,35,FALSE) ->  | L17: =+VLOOKUP($A17,'Data Input'!$A$3:$AX$32,37,FALSE) -> DNS
A18: 323 | B18: =+VLOOKUP(+$A18,'Data Input'!$A$3:$AX$32,2,FALSE) -> Starlight Lady | C18: =+VLOOKUP(+$A18,'Data Input'!$A$3:$AX$32,3,FALSE) -> N.Matthews | D18: =+VLOOKUP(+$A18,'Data Input'!$A$3:$AX$32,4,FALSE) -> 30 | E18: =+VLOOKUP(+$A18,'Data Input'!$A$3:$AX$32,5,FALSE) -> 13 | F18: =+VLOOKUP(+$A18,'Data Input'!$A$3:$AX$32,6,FALSE) -> DNS | G18: =+VLOOKUP(+$A18,'Data Input'!$A$3:$AX$32,7,FALSE) -> A | H18: =+VLOOKUP($A18,'Data Input'!$A$3:$AX$32,33,FALSE) ->  | I18: =+VLOOKUP($A18,'Data Input'!$A$3:$AX$32,34,FALSE) ->  | J18: =+VLOOKUP($A18,'Data Input'!$A$3:$AX$32,35,FALSE) ->  | L18: =+VLOOKUP($A18,'Data Input'!$A$3:$AX$32,37,FALSE) -> DNS
B20: Jeckells
A22: 199 | B22: =+VLOOKUP(+$A22,'Data Input'!$A$3:$AX$32,2,FALSE) -> Morning Calm | C22: =+VLOOKUP(+$A22,'Data Input'!$A$3:$AX$32,3,FALSE) -> W Clark | D22: =+VLOOKUP(+$A22,'Data Input'!$A$3:$AX$32,4,FALSE) -> 26 | E22: =+VLOOKUP(+$A22,'Data Input'!$A$3:$AX$32,5,FALSE) -> -9 | F22: =+VLOOKUP(+$A22,'Data Input'!$A$3:$AX$32,6,FALSE) ->  | G22: =+VLOOKUP(+$A22,'Data Input'!$A$3:$AX$32,7,FALSE) -> B | H22: =+VLOOKUP($A22,'Data Input'!$A$3:$AX$32,33,FALSE) -> 5 | I22: =+VLOOKUP($A22,'Data Input'!$A$3:$AX$32,34,FALSE) -> 37 | J22: =+VLOOKUP($A22,'Data Input'!$A$3:$AX$32,35,FALSE) -> 29.32 | L22: 1
A23: 244 | B23: =+VLOOKUP(+$A23,'Data Input'!$A$3:$AX$32,2,FALSE) -> Catspaw | C23: =+VLOOKUP(+$A23,'Data Input'!$A$3:$AX$32,3,FALSE) -> B Wilkins | D23: =+VLOOKUP(+$A23,'Data Input'!$A$3:$AX$32,4,FALSE) -> 28 | E23: =+VLOOKUP(+$A23,'Data Input'!$A$3:$AX$32,5,FALSE) -> -5 | F23: =+VLOOKUP(+$A23,'Data Input'!$A$3:$AX$32,6,FALSE) ->  | G23: =+VLOOKUP(+$A23,'Data Input'!$A$3:$AX$32,7,FALSE) -> B | H23: =+VLOOKUP($A23,'Data Input'!$A$3:$AX$32,33,FALSE) -> 5 | I23: =+VLOOKUP($A23,'Data Input'!$A$3:$AX$32,34,FALSE) -> 39 | J23: =+VLOOKUP($A23,'Data Input'!$A$3:$AX$32,35,FALSE) -> 33.7 | L23: 2
A24: 217 | B24: =+VLOOKUP(+$A24,'Data Input'!$A$3:$AX$32,2,FALSE) -> Melinda | C24: =+VLOOKUP(+$A24,'Data Input'!$A$3:$AX$32,3,FALSE) -> P Howes | D24: =+VLOOKUP(+$A24,'Data Input'!$A$3:$AX$32,4,FALSE) -> 27.9 | E24: =+VLOOKUP(+$A24,'Data Input'!$A$3:$AX$32,5,FALSE) -> 1 | F24: =+VLOOKUP(+$A24,'Data Input'!$A$3:$AX$32,6,FALSE) ->  | G24: =+VLOOKUP(+$A24,'Data Input'!$A$3:$AX$32,7,FALSE) -> B | H24: =+VLOOKUP($A24,'Data Input'!$A$3:$AX$32,33,FALSE) -> 5 | I24: =+VLOOKUP($A24,'Data Input'!$A$3:$AX$32,34,FALSE) -> 43 | J24: =+VLOOKUP($A24,'Data Input'!$A$3:$AX$32,35,FALSE) -> 0.77 | L24: 3
A25: 400 | B25: =+VLOOKUP(+$A25,'Data Input'!$A$3:$AX$32,2,FALSE) -> Swallowtail | C25: =+VLOOKUP(+$A25,'Data Input'!$A$3:$AX$32,3,FALSE) -> K Halifax | D25: =+VLOOKUP(+$A25,'Data Input'!$A$3:$AX$32,4,FALSE) -> 26.5 | E25: =+VLOOKUP(+$A25,'Data Input'!$A$3:$AX$32,5,FALSE) -> -7 | F25: =+VLOOKUP(+$A25,'Data Input'!$A$3:$AX$32,6,FALSE) ->  | G25: =+VLOOKUP(+$A25,'Data Input'!$A$3:$AX$32,7,FALSE) -> B | H25: =+VLOOKUP($A25,'Data Input'!$A$3:$AX$32,33,FALSE) -> 5 | I25: =+VLOOKUP($A25,'Data Input'!$A$3:$AX$32,34,FALSE) -> 46 | J25: =+VLOOKUP($A25,'Data Input'!$A$3:$AX$32,35,FALSE) -> 59.91 | L25: 4
A26: 179 | B26: =+VLOOKUP(+$A26,'Data Input'!$A$3:$AX$32,2,FALSE) -> Waxwing | C26: =+VLOOKUP(+$A26,'Data Input'!$A$3:$AX$32,3,FALSE) -> S Clayton | D26: =+VLOOKUP(+$A26,'Data Input'!$A$3:$AX$32,4,FALSE) -> 28 | E26: =+VLOOKUP(+$A26,'Data Input'!$A$3:$AX$32,5,FALSE) -> -8 | F26: =+VLOOKUP(+$A26,'Data Input'!$A$3:$AX$32,6,FALSE) ->  | G26: =+VLOOKUP(+$A26,'Data Input'!$A$3:$AX$32,7,FALSE) -> B | H26: =+VLOOKUP($A26,'Data Input'!$A$3:$AX$32,33,FALSE) -> 5 | I26: =+VLOOKUP($A26,'Data Input'!$A$3:$AX$32,34,FALSE) -> 47 | J26: =+VLOOKUP($A26,'Data Input'!$A$3:$AX$32,35,FALSE) -> 48.36 | L26: 5
A27: 24 | B27: =+VLOOKUP(+$A27,'Data Input'!$A$3:$AX$32,2,FALSE) -> Pippa | C27: =+VLOOKUP(+$A27,'Data Input'!$A$3:$AX$32,3,FALSE) -> G Angell | D27: =+VLOOKUP(+$A27,'Data Input'!$A$3:$AX$32,4,FALSE) -> 27.5 | E27: =+VLOOKUP(+$A27,'Data Input'!$A$3:$AX$32,5,FALSE) -> -7 | F27: =+VLOOKUP(+$A27,'Data Input'!$A$3:$AX$32,6,FALSE) ->  | G27: =+VLOOKUP(+$A27,'Data Input'!$A$3:$AX$32,7,FALSE) -> B | H27: =+VLOOKUP($A27,'Data Input'!$A$3:$AX$32,33,FALSE) -> 5 | I27: =+VLOOKUP($A27,'Data Input'!$A$3:$AX$32,34,FALSE) -> 48 | J27: =+VLOOKUP($A27,'Data Input'!$A$3:$AX$32,35,FALSE) -> 20.82 | L27: 6
A28: 418 | B28: =+VLOOKUP(+$A28,'Data Input'!$A$3:$AX$32,2,FALSE) -> Tinkerbell | C28: =+VLOOKUP(+$A28,'Data Input'!$A$3:$AX$32,3,FALSE) -> A Lincoln | D28: =+VLOOKUP(+$A28,'Data Input'!$A$3:$AX$32,4,FALSE) -> 25.2 | E28: =+VLOOKUP(+$A28,'Data Input'!$A$3:$AX$32,5,FALSE) -> -6 | F28: =+VLOOKUP(+$A28,'Data Input'!$A$3:$AX$32,6,FALSE) ->  | G28: =+VLOOKUP(+$A28,'Data Input'!$A$3:$AX$32,7,FALSE) -> B | H28: =+VLOOKUP($A28,'Data Input'!$A$3:$AX$32,33,FALSE) -> 5 | I28: =+VLOOKUP($A28,'Data Input'!$A$3:$AX$32,34,FALSE) -> 53 | J28: =+VLOOKUP($A28,'Data Input'!$A$3:$AX$32,35,FALSE) -> 46.14 | L28: 7
A29: 224 | B29: =+VLOOKUP(+$A29,'Data Input'!$A$3:$AX$32,2,FALSE) -> Anna | C29: =+VLOOKUP(+$A29,'Data Input'!$A$3:$AX$32,3,FALSE) -> R Branscombe | D29: =+VLOOKUP(+$A29,'Data Input'!$A$3:$AX$32,4,FALSE) -> 25 | E29: =+VLOOKUP(+$A29,'Data Input'!$A$3:$AX$32,5,FALSE) -> -9 | F29: =+VLOOKUP(+$A29,'Data Input'!$A$3:$AX$32,6,FALSE) ->  | G29: =+VLOOKUP(+$A29,'Data Input'!$A$3:$AX$32,7,FALSE) -> B | H29: =+VLOOKUP($A29,'Data Input'!$A$3:$AX$32,33,FALSE) -> 5 | I29: =+VLOOKUP($A29,'Data Input'!$A$3:$AX$32,34,FALSE) -> 56 | J29: =+VLOOKUP($A29,'Data Input'!$A$3:$AX$32,35,FALSE) -> 46.84 | L29: 8
A30: 226 | B30: =+VLOOKUP(+$A30,'Data Input'!$A$3:$AX$32,2,FALSE) -> Medina | C30: =+VLOOKUP(+$A30,'Data Input'!$A$3:$AX$32,3,FALSE) -> S Brown | D30: =+VLOOKUP(+$A30,'Data Input'!$A$3:$AX$32,4,FALSE) -> 26 | E30: =+VLOOKUP(+$A30,'Data Input'!$A$3:$AX$32,5,FALSE) -> -9 | F30: =+VLOOKUP(+$A30,'Data Input'!$A$3:$AX$32,6,FALSE) -> P | G30: =+VLOOKUP(+$A30,'Data Input'!$A$3:$AX$32,7,FALSE) -> B | H30: =+VLOOKUP($A30,'Data Input'!$A$3:$AX$32,33,FALSE) -> 6 | I30: =+VLOOKUP($A30,'Data Input'!$A$3:$AX$32,34,FALSE) -> 28 | J30: =+VLOOKUP($A30,'Data Input'!$A$3:$AX$32,35,FALSE) -> 5.08 | L30: =+VLOOKUP($A30,'Data Input'!$A$3:$AX$32,37,FALSE) -> P
A31: 222 | B31: =+VLOOKUP(+$A31,'Data Input'!$A$3:$AX$32,2,FALSE) -> Swallowtail | C31: =+VLOOKUP(+$A31,'Data Input'!$A$3:$AX$32,3,FALSE) -> J Wells | D31: =+VLOOKUP(+$A31,'Data Input'!$A$3:$AX$32,4,FALSE) -> 28 | E31: =+VLOOKUP(+$A31,'Data Input'!$A$3:$AX$32,5,FALSE) -> -5 | F31: =+VLOOKUP(+$A31,'Data Input'!$A$3:$AX$32,6,FALSE) -> RET | G31: =+VLOOKUP(+$A31,'Data Input'!$A$3:$AX$32,7,FALSE) -> B | H31: =+VLOOKUP($A31,'Data Input'!$A$3:$AX$32,33,FALSE) -> 7 | I31: =+VLOOKUP($A31,'Data Input'!$A$3:$AX$32,34,FALSE) -> 42 | J31: =+VLOOKUP($A31,'Data Input'!$A$3:$AX$32,35,FALSE) -> 27.6 | L31: =+VLOOKUP($A31,'Data Input'!$A$3:$AX$32,37,FALSE) -> RET
A32: 240 | B32: =+VLOOKUP(+$A32,'Data Input'!$A$3:$AX$32,2,FALSE) -> Avocet | C32: =+VLOOKUP(+$A32,'Data Input'!$A$3:$AX$32,3,FALSE) -> R Branford | D32: =+VLOOKUP(+$A32,'Data Input'!$A$3:$AX$32,4,FALSE) -> 28 | E32: =+VLOOKUP(+$A32,'Data Input'!$A$3:$AX$32,5,FALSE) -> -16 | F32: =+VLOOKUP(+$A32,'Data Input'!$A$3:$AX$32,6,FALSE) -> RET | G32: =+VLOOKUP(+$A32,'Data Input'!$A$3:$AX$32,7,FALSE) -> B | H32: =+VLOOKUP($A32,'Data Input'!$A$3:$AX$32,33,FALSE) -> 7 | I32: =+VLOOKUP($A32,'Data Input'!$A$3:$AX$32,34,FALSE) -> 2 | J32: =+VLOOKUP($A32,'Data Input'!$A$3:$AX$32,35,FALSE) -> 10.2 | L32: =+VLOOKUP($A32,'Data Input'!$A$3:$AX$32,37,FALSE) -> RET
A33: 356 | B33: =+VLOOKUP(+$A33,'Data Input'!$A$3:$AX$32,2,FALSE) -> Amsel | C33: =+VLOOKUP(+$A33,'Data Input'!$A$3:$AX$32,3,FALSE) -> D McCarter | D33: =+VLOOKUP(+$A33,'Data Input'!$A$3:$AX$32,4,FALSE) -> 28 | E33: =+VLOOKUP(+$A33,'Data Input'!$A$3:$AX$32,5,FALSE) -> -18 | F33: =+VLOOKUP(+$A33,'Data Input'!$A$3:$AX$32,6,FALSE) -> RET | G33: =+VLOOKUP(+$A33,'Data Input'!$A$3:$AX$32,7,FALSE) -> B | H33: =+VLOOKUP($A33,'Data Input'!$A$3:$AX$32,33,FALSE) -> 6 | I33: =+VLOOKUP($A33,'Data Input'!$A$3:$AX$32,34,FALSE) -> 28 | J33: =+VLOOKUP($A33,'Data Input'!$A$3:$AX$32,35,FALSE) -> 29.32 | L33: =+VLOOKUP($A33,'Data Input'!$A$3:$AX$32,37,FALSE) -> RET
B35: Wilberforce Smith
A37: 155 | B37: =+VLOOKUP(+$A37,'Data Input'!$A$3:$AX$32,2,FALSE) -> Stratos | C37: =+VLOOKUP(+$A37,'Data Input'!$A$3:$AX$32,3,FALSE) -> J Townley | D37: =+VLOOKUP(+$A37,'Data Input'!$A$3:$AX$32,4,FALSE) -> 22.6 | E37: =+VLOOKUP(+$A37,'Data Input'!$A$3:$AX$32,5,FALSE) -> -17 | F37: =+VLOOKUP(+$A37,'Data Input'!$A$3:$AX$32,6,FALSE) ->  | G37: =+VLOOKUP(+$A37,'Data Input'!$A$3:$AX$32,7,FALSE) -> C | H37: =+VLOOKUP($A37,'Data Input'!$A$3:$AX$32,33,FALSE) -> 5 | I37: =+VLOOKUP($A37,'Data Input'!$A$3:$AX$32,34,FALSE) -> 52 | J37: =+VLOOKUP($A37,'Data Input'!$A$3:$AX$32,35,FALSE) -> 23.42 | L37: 1
A38: 87 | B38: =+VLOOKUP(+$A38,'Data Input'!$A$3:$AX$32,2,FALSE) -> Modwena | C38: =+VLOOKUP(+$A38,'Data Input'!$A$3:$AX$32,3,FALSE) -> M Cassidy | D38: =+VLOOKUP(+$A38,'Data Input'!$A$3:$AX$32,4,FALSE) -> 24.8 | E38: =+VLOOKUP(+$A38,'Data Input'!$A$3:$AX$32,5,FALSE) -> -18 | F38: =+VLOOKUP(+$A38,'Data Input'!$A$3:$AX$32,6,FALSE) ->  | G38: =+VLOOKUP(+$A38,'Data Input'!$A$3:$AX$32,7,FALSE) -> C | H38: =+VLOOKUP($A38,'Data Input'!$A$3:$AX$32,33,FALSE) -> 5 | I38: =+VLOOKUP($A38,'Data Input'!$A$3:$AX$32,34,FALSE) -> 55 | J38: =+VLOOKUP($A38,'Data Input'!$A$3:$AX$32,35,FALSE) -> 15.08 | L38: 2
A39: 141 | B39: =+VLOOKUP(+$A39,'Data Input'!$A$3:$AX$32,2,FALSE) -> Nirvana | C39: =+VLOOKUP(+$A39,'Data Input'!$A$3:$AX$32,3,FALSE) -> M Claridge | D39: =+VLOOKUP(+$A39,'Data Input'!$A$3:$AX$32,4,FALSE) -> 20 | E39: =+VLOOKUP(+$A39,'Data Input'!$A$3:$AX$32,5,FALSE) -> -23 | F39: =+VLOOKUP(+$A39,'Data Input'!$A$3:$AX$32,6,FALSE) -> P | G39: =+VLOOKUP(+$A39,'Data Input'!$A$3:$AX$32,7,FALSE) -> C | H39: =+VLOOKUP($A39,'Data Input'!$A$3:$AX$32,33,FALSE) -> 5 | I39: =+VLOOKUP($A39,'Data Input'!$A$3:$AX$32,34,FALSE) -> 48 | J39: =+VLOOKUP($A39,'Data Input'!$A$3:$AX$32,35,FALSE) -> 3.17 | L39: =+VLOOKUP($A39,'Data Input'!$A$3:$AX$32,37,FALSE) -> P
A40: =SUM(A5:A39) -> 6355
A57: =+COUNT(A5:A56) -> 30
